Workbook

Sheet Úverová kalkulačka
B2: Jednoduchá úverová kalkulačka
K3: Označenia riadkov | L3: Zaplatená istina | M3: Zaplatené úroky | N3: Zostatok úveru
B4: Podrobnosti o pôžičke | K4: 2019 | L4: 316 EUR | M4: 226 EUR | N4: 9,937 EUR
B5: Výška pôžičky | D5: 10,000.00 EUR | K5: 2020 | L5: 1,106 EUR | M5: 739 EUR | N5: 9,620 EUR
B6: Ročná úroková sadzba | D6: 5.50% | K6: 2021 | L6: 1,940 EUR | M6: 1,208 EUR | N6: 8,826 EUR
B7: Obdobie úveru v rokoch | D7: 10 | K7: 2022 | L7: 2,821 EUR | M7: 1,629 EUR | N7: 7,989 EUR
B8: Počiatočný dátum pôžičky | D8: =TODAY() -> 2019-07-17 | K8: 2023 | L8: 3,751 EUR | M8: 2,001 EUR | N8: 7,104 EUR
K9: 2024 | L9: 4,735 EUR | M9: 2,320 EUR | N9: 6,169 EUR
B10: Súhrn pôžičky | K10: 2025 | L10: 5,773 EUR | M10: 2,583 EUR | N10: 5,181 EUR
B11: Mesačná splátka | D11: =IFERROR(IF(ÚverJeDobrý,MesačnáSplátka,""), "") -> 108.53 EUR | K11: 2026 | L11: 6,870 EUR | M11: 2,788 EUR | N11: 4,138 EUR
B12: Počet splátok | D12: =IFERROR(IF(ÚverJeDobrý,RokyÚveru*12,""), "") -> 120 | K12: 2027 | L12: 8,030 EUR | M12: 2,932 EUR | N12: 3,035 EUR
B13: Celkový úrok | D13: =IFERROR(IF(ÚverJeDobrý,CelkovéNákladyNaÚver-VýškaÚveru,""), "") -> 3,023.15 EUR | K13: 2028 | L13: 9,254 EUR | M13: 3,009 EUR | N13: 1,871 EUR
B14: Celkové náklady na úver | D14: =IFERROR(IF(ÚverJeDobrý,MesačnáSplátka*PočetSplátok,""), "") -> 13,023.15 EUR | K14: 2029 | L14: 10,000 EUR | M14: 3,023 EUR | N14: 641 EUR
K15: Celkový súčet | N15: 9,937 EUR
B16: Číslo platby | C16: Dátum platby | D16: Počiatočný zostatok | E16: Platba | F16: Istina | G16: Úroky | H16: Konečný zostatok
B17: =IFERROR(IF(ÚverNieJeSplatený*ÚverJeDobrý,ČísloPlatby,""), "") -> 1 | C17: =IFERROR(IF(ÚverNieJeSplatený*ÚverJeDobrý,DátumPlatby,PočiatočnýDátumÚveru), PočiatočnýDátumÚveru) -> 2019-08-17 | D17: =IFERROR(IF(ÚverNieJeSplatený*ÚverJeDobrý,HodnotaÚveru,""), "") -> 10,000.00 EUR | E17: =IFERROR(IF(ÚverNieJeSplatený*ÚverJeDobrý,MesačnáSplátka,0), 0) -> 108.53 EUR | F17: =IFERROR(IF(ÚverNieJeSplatený*ÚverJeDobrý,Istina,0), 0) -> 62.69 EUR | G17: =IFERROR(IF(ÚverNieJeSplatený*ÚverJeDobrý,SumaÚrokov,0), 0) -> 45.83 EUR | H17: =IFERROR(IF(ÚverNieJeSplatený*ÚverJeDobrý,KonečnýZostatok,0), 0) -> 9,937.31 EUR
B18: =IFERROR(IF(ÚverNieJeSplatený*ÚverJeDobrý,ČísloPlatby,""), "") -> 2 | C18: =IFERROR(IF(ÚverNieJeSplatený*ÚverJeDobrý,DátumPlatby,PočiatočnýDátumÚveru), PočiatočnýDátumÚveru) -> 2019-09-17 | D18: =IFERROR(IF(ÚverNieJeSplatený*ÚverJeDobrý,HodnotaÚveru,""), "") -> 9,937.31 EUR | E18: =IFERROR(IF(ÚverNieJeSplatený*ÚverJeDobrý,MesačnáSplátka,0), 0) -> 108.53 EUR | F18: =IFERROR(IF(ÚverNieJeSplatený*ÚverJeDobrý,Istina,0), 0) -> 62.98 EUR | G18: =IFERROR(IF(ÚverNieJeSplatený*ÚverJeDobrý,SumaÚrokov,0), 0) -> 45.55 EUR | H18: =IFERROR(IF(ÚverNieJeSplatený*ÚverJeDobrý,KonečnýZostatok,0), 0) -> 9,874.33 EUR
B19: =IFERROR(IF(ÚverNieJeSplatený*ÚverJeDobrý,ČísloPlatby,""), "") -> 3 | C19: =IFERROR(IF(ÚverNieJeSplatený*ÚverJeDobrý,DátumPlatby,PočiatočnýDátumÚveru), PočiatočnýDátumÚveru) -> 2019-10-17 | D19: =IFERROR(IF(ÚverNieJeSplatený*ÚverJeDobrý,HodnotaÚveru,""), "") -> 9,874.33 EUR | E19: =IFERROR(IF(ÚverNieJeSplatený*ÚverJeDobrý,MesačnáSplátka,0), 0) -> 108.53 EUR | F19: =IFERROR(IF(ÚverNieJeSplatený*ÚverJeDobrý,Istina,0), 0) -> 63.27 EUR | G19: =IFERROR(IF(ÚverNieJeSplatený*ÚverJeDobrý,SumaÚrokov,0), 0) -> 45.26 EUR | H19: =IFERROR(IF(ÚverNieJeSplatený*ÚverJeDobrý,KonečnýZostatok,0), 0) -> 9,811.06 EUR
B20: =IFERROR(IF(ÚverNieJeSplatený*ÚverJeDobrý,ČísloPlatby,""), "") -> 4 | C20: =IFERROR(IF(ÚverNieJeSplatený*ÚverJeDobrý,DátumPlatby,PočiatočnýDátumÚveru), PočiatočnýDátumÚveru) -> 2019-11-17 | D20: =IFERROR(IF(ÚverNieJeSplatený*ÚverJeDobrý,HodnotaÚveru,""), "") -> 9,811.06 EUR | E20: =IFERROR(IF(ÚverNieJeSplatený*ÚverJeDobrý,MesačnáSplátka,0), 0) -> 108.53 EUR | F20: =IFERROR(IF(ÚverNieJeSplatený*ÚverJeDobrý,Istina,0), 0) -> 63.56 EUR | G20: =IFERROR(IF(ÚverNieJeSplatený*ÚverJeDobrý,SumaÚrokov,0), 0) -> 44.97 EUR | H20: =IFERROR(IF(ÚverNieJeSplatený*ÚverJeDobrý,KonečnýZostatok,0), 0) -> 9,747.50 EUR
B21: =IFERROR(IF(ÚverNieJeSplatený*ÚverJeDobrý,ČísloPlatby,""), "") -> 5 | C21: =IFERROR(IF(ÚverNieJeSplatený*ÚverJeDobrý,DátumPlatby,PočiatočnýDátumÚveru), PočiatočnýDátumÚveru) -> 2019-12-17 | D21: =IFERROR(IF(ÚverNieJeSplatený*ÚverJeDobrý,HodnotaÚveru,""), "") -> 9,747.50 EUR | E21: =IFERROR(IF(ÚverNieJeSplatený*ÚverJeDobrý,MesačnáSplátka,0), 0) -> 108.53 EUR | F21: =IFERROR(IF(ÚverNieJeSplatený*ÚverJeDobrý,Istina,0), 0) -> 63.85 EUR | G21: =IFERROR(IF(ÚverNieJeSplatený*ÚverJeDobrý,SumaÚrokov,0), 0) -> 44.68 EUR | H21: =IFERROR(IF(ÚverNieJeSplatený*ÚverJeDobrý,KonečnýZostatok,0), 0) -> 9,683.65 EUR
B22: =IFERROR(IF(ÚverNieJeSplatený*ÚverJeDobrý,ČísloPlatby,""), "") -> 6 | C22: =IFERROR(IF(ÚverNieJeSplatený*ÚverJeDobrý,DátumPlatby,PočiatočnýDátumÚveru), PočiatočnýDátumÚveru) -> 2020-01-17 | D22: =IFERROR(IF(ÚverNieJeSplatený*ÚverJeDobrý,HodnotaÚveru,""), "") -> 9,683.65 EUR | E22: =IFERROR(IF(ÚverNieJeSplatený*ÚverJeDobrý,MesačnáSplátka,0), 0) -> 108.53 EUR | F22: =IFERROR(IF(ÚverNieJeSplatený*ÚverJeDobrý,Istina,0), 0) -> 64.14 EUR | G22: =IFERROR(IF(ÚverNieJeSplatený*ÚverJeDobrý,SumaÚrokov,0), 0) -> 44.38 EUR | H22: =IFERROR(IF(ÚverNieJeSplatený*ÚverJeDobrý,KonečnýZostatok,0), 0) -> 9,619.51 EUR
B23: =IFERROR(IF(ÚverNieJeSplatený*ÚverJeDobrý,ČísloPlatby,""), "") -> 7 | C23: =IFERROR(IF(ÚverNieJeSplatený*ÚverJeDobrý,DátumPlatby,PočiatočnýDátumÚveru), PočiatočnýDátumÚveru) -> 2020-02-17 | D23: =IFERROR(IF(ÚverNieJeSplatený*ÚverJeDobrý,HodnotaÚveru,""), "") -> 9,619.51 EUR | E23: =IFERROR(IF(ÚverNieJeSplatený*ÚverJeDobrý,MesačnáSplátka,0), 0) -> 108.53 EUR | F23: =IFERROR(IF(ÚverNieJeSplatený*ÚverJeDobrý,Istina,0), 0) -> 64.44 EUR | G23: =IFERROR(IF(ÚverNieJeSplatený*ÚverJeDobrý,SumaÚrokov,0), 0) -> 44.09 EUR | H23: =IFERROR(IF(ÚverNieJeSplatený*ÚverJeDobrý,KonečnýZostatok,0), 0) -> 9,555.07 EUR
B24: =IFERROR(IF(ÚverNieJeSplatený*ÚverJeDobrý,ČísloPlatby,""), "") -> 8 | C24: =IFERROR(IF(ÚverNieJeSplatený*ÚverJeDobrý,DátumPlatby,PočiatočnýDátumÚveru), PočiatočnýDátumÚveru) -> 2020-03-17 | D24: =IFERROR(IF(ÚverNieJeSplatený*ÚverJeDobrý,HodnotaÚveru,""), "") -> 9,555.07 EUR | E24: =IFERROR(IF(ÚverNieJeSplatený*ÚverJeDobrý,MesačnáSplátka,0), 0) -> 108.53 EUR | F24: =IFERROR(IF(ÚverNieJeSplatený*ÚverJeDobrý,Istina,0), 0) -> 64.73 EUR | G24: =IFERROR(IF(ÚverNieJeSplatený*ÚverJeDobrý,SumaÚrokov,0), 0) -> 43.79 EUR | H24: =IFERROR(IF(ÚverNieJeSplatený*ÚverJeDobrý,KonečnýZostatok,0), 0) -> 9,490.34 EUR
B25: =IFERROR(IF(ÚverNieJeSplatený*ÚverJeDobrý,ČísloPlatby,""), "") -> 9 | C25: =IFERROR(IF(ÚverNieJeSplatený*ÚverJeDobrý,DátumPlatby,PočiatočnýDátumÚveru), PočiatočnýDátumÚveru) -> 2020-04-17 | D25: =IFERROR(IF(ÚverNieJeSplatený*ÚverJeDobrý,HodnotaÚveru,""), "") -> 9,490.34 EUR | E25: =IFERROR(IF(ÚverNieJeSplatený*ÚverJeDobrý,MesačnáSplátka,0), 0) -> 108.53 EUR | F25: =IFERROR(IF(ÚverNieJeSplatený*ÚverJeDobrý,Istina,0), 0) -> 65.03 EUR | G25: =IFERROR(IF(ÚverNieJeSplatený*ÚverJeDobrý,SumaÚrokov,0), 0) -> 43.50 EUR | H25: =IFERROR(IF(ÚverNieJeSplatený*ÚverJeDobrý,KonečnýZostatok,0), 0) -> 9,425.31 EUR
B26: =IFERROR(IF(ÚverNieJeSplatený*ÚverJeDobrý,ČísloPlatby,""), "") -> 10 | C26: =IFERROR(IF(ÚverNieJeSplatený*ÚverJeDobrý,DátumPlatby,PočiatočnýDátumÚveru), PočiatočnýDátumÚveru) -> 2020-05-17 | D26: =IFERROR(IF(ÚverNieJeSplatený*ÚverJeDobrý,HodnotaÚveru,""), "") -> 9,425.31 EUR | E26: =IFERROR(IF(ÚverNieJeSplatený*ÚverJeDobrý,MesačnáSplátka,0), 0) -> 108.53 EUR | F26: =IFERROR(IF(ÚverNieJeSplatený*ÚverJeDobrý,Istina,0), 0) -> 65.33 EUR | G26: =IFERROR(IF(ÚverNieJeSplatený*ÚverJeDobrý,SumaÚrokov,0), 0) -> 43.20 EUR | H26: =IFERROR(IF(ÚverNieJeSplatený*ÚverJeDobrý,KonečnýZostatok,0), 0) -> 9,359.98 EUR
B27: =IFERROR(IF(ÚverNieJeSplatený*ÚverJeDobrý,ČísloPlatby,""), "") -> 11 | C27: =IFERROR(IF(ÚverNieJeSplatený*ÚverJeDobrý,DátumPlatby,PočiatočnýDátumÚveru), PočiatočnýDátumÚveru) -> 2020-06-17 | D27: =IFERROR(IF(ÚverNieJeSplatený*ÚverJeDobrý,HodnotaÚveru,""), "") -> 9,359.98 EUR | E27: =IFERROR(IF(ÚverNieJeSplatený*ÚverJeDobrý,MesačnáSplátka,0), 0) -> 108.53 EUR | F27: =IFERROR(IF(ÚverNieJeSplatený*ÚverJeDobrý,Istina,0), 0) -> 65.63 EUR | G27: =IFERROR(IF(ÚverNieJeSplatený*ÚverJeDobrý,SumaÚrokov,0), 0) -> 42.90 EUR | H27: =IFERROR(IF(ÚverNieJeSplatený*ÚverJeDobrý,KonečnýZostatok,0), 0) -> 9,294.35 EUR
B28: =IFERROR(IF(ÚverNieJeSplatený*ÚverJeDobrý,ČísloPlatby,""), "") -> 12 | C28: =IFERROR(IF(ÚverNieJeSplatený*ÚverJeDobrý,DátumPlatby,PočiatočnýDátumÚveru), PočiatočnýDátumÚveru) -> 2020-07-17 | D28: =IFERROR(IF(ÚverNieJeSplatený*ÚverJeDobrý,HodnotaÚveru,""), "") -> 9,294.35 EUR | E28: =IFERROR(IF(ÚverNieJeSplatený*ÚverJeDobrý,MesačnáSplátka,0), 0) -> 108.53 EUR | F28: =IFERROR(IF(ÚverNieJeSplatený*ÚverJeDobrý,Istina,0), 0) -> 65.93 EUR | G28: =IFERROR(IF(ÚverNieJeSplatený*ÚverJeDobrý,SumaÚrokov,0), 0) -> 42.60 EUR | H28: =IFERROR(IF(ÚverNieJeSplatený*ÚverJeDobrý,KonečnýZostatok,0), 0) -> 9,228.43 EUR
B29: =IFERROR(IF(ÚverNieJeSplatený*ÚverJeDobrý,ČísloPlatby,""), "") -> 13 | C29: =IFERROR(IF(ÚverNieJeSplatený*ÚverJeDobrý,DátumPlatby,PočiatočnýDátumÚveru), PočiatočnýDátumÚveru) -> 2020-08-17 | D29: =IFERROR(IF(ÚverNieJeSplatený*ÚverJeDobrý,HodnotaÚveru,""), "") -> 9,228.43 EUR | E29: =IFERROR(IF(ÚverNieJeSplatený*ÚverJeDobrý,MesačnáSplátka,0), 0) -> 108.53 EUR | F29: =IFERROR(IF(ÚverNieJeSplatený*ÚverJeDobrý,Istina,0), 0) -> 66.23 EUR | G29: =IFERROR(IF(ÚverNieJeSplatený*ÚverJeDobrý,SumaÚrokov,0), 0) -> 42.30 EUR | H29: =IFERROR(IF(ÚverNieJeSplatený*ÚverJeDobrý,KonečnýZostatok,0), 0) -> 9,162.20 EUR
B30: =IFERROR(IF(ÚverNieJeSplatený*ÚverJeDobrý,ČísloPlatby,""), "") -> 14 | C30: =IFERROR(IF(ÚverNieJeSplatený*ÚverJeDobrý,DátumPlatby,PočiatočnýDátumÚveru), PočiatočnýDátumÚveru) -> 2020-09-17 | D30: =IFERROR(IF(ÚverNieJeSplatený*ÚverJeDobrý,HodnotaÚveru,""), "") -> 9,162.20 EUR | E30: =IFERROR(IF(ÚverNieJeSplatený*ÚverJeDobrý,MesačnáSplátka,0), 0) -> 108.53 EUR | F30: =IFERROR(IF(ÚverNieJeSplatený*ÚverJeDobrý,Istina,0), 0) -> 66.53 EUR | G30: =IFERROR(IF(ÚverNieJeSplatený*ÚverJeDobrý,SumaÚrokov,0), 0) -> 41.99 EUR | H30: =IFERROR(IF(ÚverNieJeSplatený*ÚverJeDobrý,KonečnýZostatok,0), 0) -> 9,095.67 EUR
B31: =IFERROR(IF(ÚverNieJeSplatený*ÚverJeDobrý,ČísloPlatby,""), "") -> 15 | C31: =IFERROR(IF(ÚverNieJeSplatený*ÚverJeDobrý,DátumPlatby,PočiatočnýDátumÚveru), PočiatočnýDátumÚveru) -> 2020-10-17 | D31: =IFERROR(IF(ÚverNieJeSplatený*ÚverJeDobrý,HodnotaÚveru,""), "") -> 9,095.67 EUR | E31: =IFERROR(IF(ÚverNieJeSplatený*ÚverJeDobrý,MesačnáSplátka,0), 0) -> 108.53 EUR | F31: =IFERROR(IF(ÚverNieJeSplatený*ÚverJeDobrý,Istina,0), 0) -> 66.84 EUR | G31: =IFERROR(IF(ÚverNieJeSplatený*ÚverJeDobrý,SumaÚrokov,0), 0) -> 41.69 EUR | H31: =IFERROR(IF(ÚverNieJeSplatený*ÚverJeDobrý,KonečnýZostatok,0), 0) -> 9,028.83 EUR
B32: =IFERROR(IF(ÚverNieJeSplatený*ÚverJeDobrý,ČísloPlatby,""), "") -> 16 | C32: =IFERROR(IF(ÚverNieJeSplatený*ÚverJeDobrý,DátumPlatby,PočiatočnýDátumÚveru), PočiatočnýDátumÚveru) -> 2020-11-17 | D32: =IFERROR(IF(ÚverNieJeSplatený*ÚverJeDobrý,HodnotaÚveru,""), "") -> 9,028.83 EUR | E32: =IFERROR(IF(ÚverNieJeSplatený*ÚverJeDobrý,MesačnáSplátka,0), 0) -> 108.53 EUR | F32: =IFERROR(IF(ÚverNieJeSplatený*ÚverJeDobrý,Istina,0), 0) -> 67.14 EUR | G32: =IFERROR(IF(ÚverNieJeSplatený*ÚverJeDobrý,SumaÚrokov,0), 0) -> 41.38 EUR | H32: =IFERROR(IF(ÚverNieJeSplatený*ÚverJeDobrý,KonečnýZostatok,0), 0) -> 8,961.68 EUR
B33: =IFERROR(IF(ÚverNieJeSplatený*ÚverJeDobrý,ČísloPlatby,""), "") -> 17 | C33: =IFERROR(IF(ÚverNieJeSplatený*ÚverJeDobrý,DátumPlatby,PočiatočnýDátumÚveru), PočiatočnýDátumÚveru) -> 2020-12-17 | D33: =IFERROR(IF(ÚverNieJeSplatený*ÚverJeDobrý,HodnotaÚveru,""), "") -> 8,961.68 EUR | E33: =IFERROR(IF(ÚverNieJeSplatený*ÚverJeDobrý,MesačnáSplátka,0), 0) -> 108.53 EUR | F33: =IFERROR(IF(ÚverNieJeSplatený*ÚverJeDobrý,Istina,0), 0) -> 67.45 EUR | G33: =IFERROR(IF(ÚverNieJeSplatený*ÚverJeDobrý,SumaÚrokov,0), 0) -> 41.07 EUR | H33: =IFERROR(IF(ÚverNieJeSplatený*ÚverJeDobrý,KonečnýZostatok,0), 0) -> 8,894.23 EUR
B34: =IFERROR(IF(ÚverNieJeSplatený*ÚverJeDobrý,ČísloPlatby,""), "") -> 18 | C34: =IFERROR(IF(ÚverNieJeSplatený*ÚverJeDobrý,DátumPlatby,PočiatočnýDátumÚveru), PočiatočnýDátumÚveru) -> 2021-01-17 | D34: =IFERROR(IF(ÚverNieJeSplatený*ÚverJeDobrý,HodnotaÚveru,""), "") -> 8,894.23 EUR | E34: =IFERROR(IF(ÚverNieJeSplatený*ÚverJeDobrý,MesačnáSplátka,0), 0) -> 108.53 EUR | F34: =IFERROR(IF(ÚverNieJeSplatený*ÚverJeDobrý,Istina,0), 0) -> 67.76 EUR | G34: =IFERROR(IF(ÚverNieJeSplatený*ÚverJeDobrý,SumaÚrokov,0), 0) -> 40.77 EUR | H34: =IFERROR(IF(ÚverNieJeSplatený*ÚverJeDobrý,KonečnýZostatok,0), 0) -> 8,826.47 EUR
B35: =IFERROR(IF(ÚverNieJeSplatený*ÚverJeDobrý,ČísloPlatby,""), "") -> 19 | C35: =IFERROR(IF(ÚverNieJeSplatený*ÚverJeDobrý,DátumPlatby,PočiatočnýDátumÚveru), PočiatočnýDátumÚveru) -> 2021-02-17 | D35: =IFERROR(IF(ÚverNieJeSplatený*ÚverJeDobrý,HodnotaÚveru,""), "") -> 8,826.47 EUR | E35: =IFERROR(IF(ÚverNieJeSplatený*ÚverJeDobrý,MesačnáSplátka,0), 0) -> 108.53 EUR | F35: =IFERROR(IF(ÚverNieJeSplatený*ÚverJeDobrý,Istina,0), 0) -> 68.07 EUR | G35: =IFERROR(IF(ÚverNieJeSplatený*ÚverJeDobrý,SumaÚrokov,0), 0) -> 40.45 EUR | H35: =IFERROR(IF(ÚverNieJeSplatený*ÚverJeDobrý,KonečnýZostatok,0), 0) -> 8,758.40 EUR
B36: =IFERROR(IF(ÚverNieJeSplatený*ÚverJeDobrý,ČísloPlatby,""), "") -> 20 | C36: =IFERROR(IF(ÚverNieJeSplatený*ÚverJeDobrý,DátumPlatby,PočiatočnýDátumÚveru), PočiatočnýDátumÚveru) -> 2021-03-17 | D36: =IFERROR(IF(ÚverNieJeSplatený*ÚverJeDobrý,HodnotaÚveru,""), "") -> 8,758.40 EUR | E36: =IFERROR(IF(ÚverNieJeSplatený*ÚverJeDobrý,MesačnáSplátka,0), 0) -> 108.53 EUR | F36: =IFERROR(IF(ÚverNieJeSplatený*ÚverJeDobrý,Istina,0), 0) -> 68.38 EUR | G36: =IFERROR(IF(ÚverNieJeSplatený*ÚverJeDobrý,SumaÚrokov,0), 0) -> 40.14 EUR | H36: =IFERROR(IF(ÚverNieJeSplatený*ÚverJeDobrý,KonečnýZostatok,0), 0) -> 8,690.01 EUR
B37: =IFERROR(IF(ÚverNieJeSplatený*ÚverJeDobrý,ČísloPlatby,""), "") -> 21 | C37: =IFERROR(IF(ÚverNieJeSplatený*ÚverJeDobrý,DátumPlatby,PočiatočnýDátumÚveru), PočiatočnýDátumÚveru) -> 2021-04-17 | D37: =IFERROR(IF(ÚverNieJeSplatený*ÚverJeDobrý,HodnotaÚveru,""), "") -> 8,690.01 EUR | E37: =IFERROR(IF(ÚverNieJeSplatený*ÚverJeDobrý,MesačnáSplátka,0), 0) -> 108.53 EUR | F37: =IFERROR(IF(ÚverNieJeSplatený*ÚverJeDobrý,Istina,0), 0) -> 68.70 EUR | G37: =IFERROR(IF(ÚverNieJeSplatený*ÚverJeDobrý,SumaÚrokov,0), 0) -> 39.83 EUR | H37: =IFERROR(IF(ÚverNieJeSplatený*ÚverJeDobrý,KonečnýZostatok,0), 0) -> 8,621.32 EUR
B38: =IFERROR(IF(ÚverNieJeSplatený*ÚverJeDobrý,ČísloPlatby,""), "") -> 22 | C38: =IFERROR(IF(ÚverNieJeSplatený*ÚverJeDobrý,DátumPlatby,PočiatočnýDátumÚveru), PočiatočnýDátumÚveru) -> 2021-05-17 | D38: =IFERROR(IF(ÚverNieJeSplatený*ÚverJeDobrý,HodnotaÚveru,""), "") -> 8,621.32 EUR | E38: =IFERROR(IF(ÚverNieJeSplatený*ÚverJeDobrý,MesačnáSplátka,0), 0) -> 108.53 EUR | F38: =IFERROR(IF(ÚverNieJeSplatený*ÚverJeDobrý,Istina,0), 0) -> 69.01 EUR | G38: =IFERROR(IF(ÚverNieJeSplatený*ÚverJeDobrý,SumaÚrokov,0), 0) -> 39.51 EUR | H38: =IFERROR(IF(ÚverNieJeSplatený*ÚverJeDobrý,KonečnýZostatok,0), 0) -> 8,552.31 EUR
B39: =IFERROR(IF(ÚverNieJeSplatený*ÚverJeDobrý,ČísloPlatby,""), "") -> 23 | C39: =IFERROR(IF(ÚverNieJeSplatený*ÚverJeDobrý,DátumPlatby,PočiatočnýDátumÚveru), PočiatočnýDátumÚveru) -> 2021-06-17 | D39: =IFERROR(IF(ÚverNieJeSplatený*ÚverJeDobrý,HodnotaÚveru,""), "") -> 8,552.31 EUR | E39: =IFERROR(IF(ÚverNieJeSplatený*ÚverJeDobrý,MesačnáSplátka,0), 0) -> 108.53 EUR | F39: =IFERROR(IF(ÚverNieJeSplatený*ÚverJeDobrý,Istina,0), 0) -> 69.33 EUR | G39: =IFERROR(IF(ÚverNieJeSplatený*ÚverJeDobrý,SumaÚrokov,0), 0) -> 39.20 EUR | H39: =IFERROR(IF(ÚverNieJeSplatený*ÚverJeDobrý,KonečnýZostatok,0), 0) -> 8,482.98 EUR
B40: =IFERROR(IF(ÚverNieJeSplatený*ÚverJeDobrý,ČísloPlatby,""), "") -> 24 | C40: =IFERROR(IF(ÚverNieJeSplatený*ÚverJeDobrý,DátumPlatby,PočiatočnýDátumÚveru), PočiatočnýDátumÚveru) -> 2021-07-17 | D40: =IFERROR(IF(ÚverNieJeSplatený*ÚverJeDobrý,HodnotaÚveru,""), "") -> 8,482.98 EUR | E40: =IFERROR(IF(ÚverNieJeSplatený*ÚverJeDobrý,MesačnáSplátka,0), 0) -> 108.53 EUR | F40: =IFERROR(IF(ÚverNieJeSplatený*ÚverJeDobrý,Istina,0), 0) -> 69.65 EUR | G40: =IFERROR(IF(ÚverNieJeSplatený*ÚverJeDobrý,SumaÚrokov,0), 0) -> 38.88 EUR | H40: =IFERROR(IF(ÚverNieJeSplatený*ÚverJeDobrý,KonečnýZostatok,0), 0) -> 8,413.33 EUR
B41: =IFERROR(IF(ÚverNieJeSplatený*ÚverJeDobrý,ČísloPlatby,""), "") -> 25 | C41: =IFERROR(IF(ÚverNieJeSplatený*ÚverJeDobrý,DátumPlatby,PočiatočnýDátumÚveru), PočiatočnýDátumÚveru) -> 2021-08-17 | D41: =IFERROR(IF(ÚverNieJeSplatený*ÚverJeDobrý,HodnotaÚveru,""), "") -> 8,413.33 EUR | E41: =IFERROR(IF(ÚverNieJeSplatený*ÚverJeDobrý,MesačnáSplátka,0), 0) -> 108.53 EUR | F41: =IFERROR(IF(ÚverNieJeSplatený*ÚverJeDobrý,Istina,0), 0) -> 69.97 EUR | G41: =IFERROR(IF(ÚverNieJeSplatený*ÚverJeDobrý,SumaÚrokov,0), 0) -> 38.56 EUR | H41: =IFERROR(IF(ÚverNieJeSplatený*ÚverJeDobrý,KonečnýZostatok,0), 0) -> 8,343.37 EUR
B42: =IFERROR(IF(ÚverNieJeSplatený*ÚverJeDobrý,ČísloPlatby,""), "") -> 26 | C42: =IFERROR(IF(ÚverNieJeSplatený*ÚverJeDobrý,DátumPlatby,PočiatočnýDátumÚveru), PočiatočnýDátumÚveru) -> 2021-09-17 | D42: =IFERROR(IF(ÚverNieJeSplatený*ÚverJeDobrý,HodnotaÚveru,""), "") -> 8,343.37 EUR | E42: =IFERROR(IF(ÚverNieJeSplatený*ÚverJeDobrý,MesačnáSplátka,0), 0) -> 108.53 EUR | F42: =IFERROR(IF(ÚverNieJeSplatený*ÚverJeDobrý,Istina,0), 0) -> 70.29 EUR | G42: =IFERROR(IF(ÚverNieJeSplatený*ÚverJeDobrý,SumaÚrokov,0), 0) -> 38.24 EUR | H42: =IFERROR(IF(ÚverNieJeSplatený*ÚverJeDobrý,KonečnýZostatok,0), 0) -> 8,273.08 EUR
B43: =IFERROR(IF(ÚverNieJeSplatený*ÚverJeDobrý,ČísloPlatby,""), "") -> 27 | C43: =IFERROR(IF(ÚverNieJeSplatený*ÚverJeDobrý,DátumPlatby,PočiatočnýDátumÚveru), PočiatočnýDátumÚveru) -> 2021-10-17 | D43: =IFERROR(IF(ÚverNieJeSplatený*ÚverJeDobrý,HodnotaÚveru,""), "") -> 8,273.08 EUR | E43: =IFERROR(IF(ÚverNieJeSplatený*ÚverJeDobrý,MesačnáSplátka,0), 0) -> 108.53 EUR | F43: =IFERROR(IF(ÚverNieJeSplatený*ÚverJeDobrý,Istina,0), 0) -> 70.61 EUR | G43: =IFERROR(IF(ÚverNieJeSplatený*ÚverJeDobrý,SumaÚrokov,0), 0) -> 37.92 EUR | H43: =IFERROR(IF(ÚverNieJeSplatený*ÚverJeDobrý,KonečnýZostatok,0), 0) -> 8,202.47 EUR
B44: =IFERROR(IF(ÚverNieJeSplatený*ÚverJeDobrý,ČísloPlatby,""), "") -> 28 | C44: =IFERROR(IF(ÚverNieJeSplatený*ÚverJeDobrý,DátumPlatby,PočiatočnýDátumÚveru), PočiatočnýDátumÚveru) -> 2021-11-17 | D44: =IFERROR(IF(ÚverNieJeSplatený*ÚverJeDobrý,HodnotaÚveru,""), "") -> 8,202.47 EUR | E44: =IFERROR(IF(ÚverNieJeSplatený*ÚverJeDobrý,MesačnáSplátka,0), 0) -> 108.53 EUR | F44: =IFERROR(IF(ÚverNieJeSplatený*ÚverJeDobrý,Istina,0), 0) -> 70.93 EUR | G44: =IFERROR(IF(ÚverNieJeSplatený*ÚverJeDobrý,SumaÚrokov,0), 0) -> 37.59 EUR | H44: =IFERROR(IF(ÚverNieJeSplatený*ÚverJeDobrý,KonečnýZostatok,0), 0) -> 8,131.54 EUR
B45: =IFERROR(IF(ÚverNieJeSplatený*ÚverJeDobrý,ČísloPlatby,""), "") -> 29 | C45: =IFERROR(IF(ÚverNieJeSplatený*ÚverJeDobrý,DátumPlatby,PočiatočnýDátumÚveru), PočiatočnýDátumÚveru) -> 2021-12-17 | D45: =IFERROR(IF(ÚverNieJeSplatený*ÚverJeDobrý,HodnotaÚveru,""), "") -> 8,131.54 EUR | E45: =IFERROR(IF(ÚverNieJeSplatený*ÚverJeDobrý,MesačnáSplátka,0), 0) -> 108.53 EUR | F45: =IFERROR(IF(ÚverNieJeSplatený*ÚverJeDobrý,Istina,0), 0) -> 71.26 EUR | G45: =IFERROR(IF(ÚverNieJeSplatený*ÚverJeDobrý,SumaÚrokov,0), 0) -> 37.27 EUR | H45: =IFERROR(IF(ÚverNieJeSplatený*ÚverJeDobrý,KonečnýZostatok,0), 0) -> 8,060.28 EUR
B46: =IFERROR(IF(ÚverNieJeSplatený*ÚverJeDobrý,ČísloPlatby,""), "") -> 30 | C46: =IFERROR(IF(ÚverNieJeSplatený*ÚverJeDobrý,DátumPlatby,PočiatočnýDátumÚveru), PočiatočnýDátumÚveru) -> 2022-01-17 | D46: =IFERROR(IF(ÚverNieJeSplatený*ÚverJeDobrý,HodnotaÚveru,""), "") -> 8,060.28 EUR | E46: =IFERROR(IF(ÚverNieJeSplatený*ÚverJeDobrý,MesačnáSplátka,0), 0) -> 108.53 EUR | F46: =IFERROR(IF(ÚverNieJeSplatený*ÚverJeDobrý,Istina,0), 0) -> 71.58 EUR | G46: =IFERROR(IF(ÚverNieJeSplatený*ÚverJeDobrý,SumaÚrokov,0), 0) -> 36.94 EUR | H46: =IFERROR(IF(ÚverNieJeSplatený*ÚverJeDobrý,KonečnýZostatok,0), 0) -> 7,988.70 EUR
B47: =IFERROR(IF(ÚverNieJeSplatený*ÚverJeDobrý,ČísloPlatby,""), "") -> 31 | C47: =IFERROR(IF(ÚverNieJeSplatený*ÚverJeDobrý,DátumPlatby,PočiatočnýDátumÚveru), PočiatočnýDátumÚveru) -> 2022-02-17 | D47: =IFERROR(IF(ÚverNieJeSplatený*ÚverJeDobrý,HodnotaÚveru,""), "") -> 7,988.70 EUR | E47: =IFERROR(IF(ÚverNieJeSplatený*ÚverJeDobrý,MesačnáSplátka,0), 0) -> 108.53 EUR | F47: =IFERROR(IF(ÚverNieJeSplatený*ÚverJeDobrý,Istina,0), 0) -> 71.91 EUR | G47: =IFERROR(IF(ÚverNieJeSplatený*ÚverJeDobrý,SumaÚrokov,0), 0) -> 36.61 EUR | H47: =IFERROR(IF(ÚverNieJeSplatený*ÚverJeDobrý,KonečnýZostatok,0), 0) -> 7,916.79 EUR
B48: =IFERROR(IF(ÚverNieJeSplatený*ÚverJeDobrý,ČísloPlatby,""), "") -> 32 | C48: =IFERROR(IF(ÚverNieJeSplatený*ÚverJeDobrý,DátumPlatby,PočiatočnýDátumÚveru), PočiatočnýDátumÚveru) -> 2022-03-17 | D48: =IFERROR(IF(ÚverNieJeSplatený*ÚverJeDobrý,HodnotaÚveru,""), "") -> 7,916.79 EUR | E48: =IFERROR(IF(ÚverNieJeSplatený*ÚverJeDobrý,MesačnáSplátka,0), 0) -> 108.53 EUR | F48: =IFERROR(IF(ÚverNieJeSplatený*ÚverJeDobrý,Istina,0), 0) -> 72.24 EUR | G48: =IFERROR(IF(ÚverNieJeSplatený*ÚverJeDobrý,SumaÚrokov,0), 0) -> 36.29 EUR | H48: =IFERROR(IF(ÚverNieJeSplatený*ÚverJeDobrý,KonečnýZostatok,0), 0) -> 7,844.55 EUR
B49: =IFERROR(IF(ÚverNieJeSplatený*ÚverJeDobrý,ČísloPlatby,""), "") -> 33 | C49: =IFERROR(IF(ÚverNieJeSplatený*ÚverJeDobrý,DátumPlatby,PočiatočnýDátumÚveru), PočiatočnýDátumÚveru) -> 2022-04-17 | D49: =IFERROR(IF(ÚverNieJeSplatený*ÚverJeDobrý,HodnotaÚveru,""), "") -> 7,844.55 EUR | E49: =IFERROR(IF(ÚverNieJeSplatený*ÚverJeDobrý,MesačnáSplátka,0), 0) -> 108.53 EUR | F49: =IFERROR(IF(ÚverNieJeSplatený*ÚverJeDobrý,Istina,0), 0) -> 72.57 EUR | G49: =IFERROR(IF(ÚverNieJeSplatený*ÚverJeDobrý,SumaÚrokov,0), 0) -> 35.95 EUR | H49: =IFERROR(IF(ÚverNieJeSplatený*ÚverJeDobrý,KonečnýZostatok,0), 0) -> 7,771.98 EUR
B50: =IFERROR(IF(ÚverNieJeSplatený*ÚverJeDobrý,ČísloPlatby,""), "") -> 34 | C50: =IFERROR(IF(ÚverNieJeSplatený*ÚverJeDobrý,DátumPlatby,PočiatočnýDátumÚveru), PočiatočnýDátumÚveru) -> 2022-05-17 | D50: =IFERROR(IF(ÚverNieJeSplatený*ÚverJeDobrý,HodnotaÚveru,""), "") -> 7,771.98 EUR | E50: =IFERROR(IF(ÚverNieJeSplatený*ÚverJeDobrý,MesačnáSplátka,0), 0) -> 108.53 EUR | F50: =IFERROR(IF(ÚverNieJeSplatený*ÚverJeDobrý,Istina,0), 0) -> 72.90 EUR | G50: =IFERROR(IF(ÚverNieJeSplatený*ÚverJeDobrý,SumaÚrokov,0), 0) -> 35.62 EUR | H50: =IFERROR(IF(ÚverNieJeSplatený*ÚverJeDobrý,KonečnýZostatok,0), 0) -> 7,699.07 EUR
B51: =IFERROR(IF(ÚverNieJeSplatený*ÚverJeDobrý,ČísloPlatby,""), "") -> 35 | C51: =IFERROR(IF(ÚverNieJeSplatený*ÚverJeDobrý,DátumPlatby,PočiatočnýDátumÚveru), PočiatočnýDátumÚveru) -> 2022-06-17 | D51: =IFERROR(IF(ÚverNieJeSplatený*ÚverJeDobrý,HodnotaÚveru,""), "") -> 7,699.07 EUR | E51: =IFERROR(IF(ÚverNieJeSplatený*ÚverJeDobrý,MesačnáSplátka,0), 0) -> 108.53 EUR | F51: =IFERROR(IF(ÚverNieJeSplatený*ÚverJeDobrý,Istina,0), 0) -> 73.24 EUR | G51: =IFERROR(IF(ÚverNieJeSplatený*ÚverJeDobrý,SumaÚrokov,0), 0) -> 35.29 EUR | H51: =IFERROR(IF(ÚverNieJeSplatený*ÚverJeDobrý,KonečnýZostatok,0), 0) -> 7,625.83 EUR
B52: =IFERROR(IF(ÚverNieJeSplatený*ÚverJeDobrý,ČísloPlatby,""), "") -> 36 | C52: =IFERROR(IF(ÚverNieJeSplatený*ÚverJeDobrý,DátumPlatby,PočiatočnýDátumÚveru), PočiatočnýDátumÚveru) -> 2022-07-17 | D52: =IFERROR(IF(ÚverNieJeSplatený*ÚverJeDobrý,HodnotaÚveru,""), "") -> 7,625.83 EUR | E52: =IFERROR(IF(ÚverNieJeSplatený*ÚverJeDobrý,MesačnáSplátka,0), 0) -> 108.53 EUR | F52: =IFERROR(IF(ÚverNieJeSplatený*ÚverJeDobrý,Istina,0), 0) -> 73.57 EUR | G52: =IFERROR(IF(ÚverNieJeSplatený*ÚverJeDobrý,SumaÚrokov,0), 0) -> 34.95 EUR | H52: =IFERROR(IF(ÚverNieJeSplatený*ÚverJeDobrý,KonečnýZostatok,0), 0) -> 7,552.26 EUR
B53: =IFERROR(IF(ÚverNieJeSplatený*ÚverJeDobrý,ČísloPlatby,""), "") -> 37 | C53: =IFERROR(IF(ÚverNieJeSplatený*ÚverJeDobrý,DátumPlatby,PočiatočnýDátumÚveru), PočiatočnýDátumÚveru) -> 2022-08-17 | D53: =IFERROR(IF(ÚverNieJeSplatený*ÚverJeDobrý,HodnotaÚveru,""), "") -> 7,552.26 EUR | E53: =IFERROR(IF(ÚverNieJeSplatený*ÚverJeDobrý,MesačnáSplátka,0), 0) -> 108.53 EUR | F53: =IFERROR(IF(ÚverNieJeSplatený*ÚverJeDobrý,Istina,0), 0) -> 73.91 EUR | G53: =IFERROR(IF(ÚverNieJeSplatený*ÚverJeDobrý,SumaÚrokov,0), 0) -> 34.61 EUR | H53: =IFERROR(IF(ÚverNieJeSplatený*ÚverJeDobrý,KonečnýZostatok,0), 0) -> 7,478.35 EUR
B54: =IFERROR(IF(ÚverNieJeSplatený*ÚverJeDobrý,ČísloPlatby,""), "") -> 38 | C54: =IFERROR(IF(ÚverNieJeSplatený*ÚverJeDobrý,DátumPlatby,PočiatočnýDátumÚveru), PočiatočnýDátumÚveru) -> 2022-09-17 | D54: =IFERROR(IF(ÚverNieJeSplatený*ÚverJeDobrý,HodnotaÚveru,""), "") -> 7,478.35 EUR | E54: =IFERROR(IF(ÚverNieJeSplatený*ÚverJeDobrý,MesačnáSplátka,0), 0) -> 108.53 EUR | F54: =IFERROR(IF(ÚverNieJeSplatený*ÚverJeDobrý,Istina,0), 0) -> 74.25 EUR | G54: =IFERROR(IF(ÚverNieJeSplatený*ÚverJeDobrý,SumaÚrokov,0), 0) -> 34.28 EUR | H54: =IFERROR(IF(ÚverNieJeSplatený*ÚverJeDobrý,KonečnýZostatok,0), 0) -> 7,404.10 EUR
B55: =IFERROR(IF(ÚverNieJeSplatený*ÚverJeDobrý,ČísloPlatby,""), "") -> 39 | C55: =IFERROR(IF(ÚverNieJeSplatený*ÚverJeDobrý,DátumPlatby,PočiatočnýDátumÚveru), PočiatočnýDátumÚveru) -> 2022-10-17 | D55: =IFERROR(IF(ÚverNieJeSplatený*ÚverJeDobrý,HodnotaÚveru,""), "") -> 7,404.10 EUR | E55: =IFERROR(IF(ÚverNieJeSplatený*ÚverJeDobrý,MesačnáSplátka,0), 0) -> 108.53 EUR | F55: =IFERROR(IF(ÚverNieJeSplatený*ÚverJeDobrý,Istina,0), 0) -> 74.59 EUR | G55: =IFERROR(IF(ÚverNieJeSplatený*ÚverJeDobrý,SumaÚrokov,0), 0) -> 33.94 EUR | H55: =IFERROR(IF(ÚverNieJeSplatený*ÚverJeDobrý,KonečnýZostatok,0), 0) -> 7,329.51 EUR
B56: =IFERROR(IF(ÚverNieJeSplatený*ÚverJeDobrý,ČísloPlatby,""), "") -> 40 | C56: =IFERROR(IF(ÚverNieJeSplatený*ÚverJeDobrý,DátumPlatby,PočiatočnýDátumÚveru), PočiatočnýDátumÚveru) -> 2022-11-17 | D56: =IFERROR(IF(ÚverNieJeSplatený*ÚverJeDobrý,HodnotaÚveru,""), "") -> 7,329.51 EUR | E56: =IFERROR(IF(ÚverNieJeSplatený*ÚverJeDobrý,MesačnáSplátka,0), 0) -> 108.53 EUR | F56: =IFERROR(IF(ÚverNieJeSplatený*ÚverJeDobrý,Istina,0), 0) -> 74.93 EUR | G56: =IFERROR(IF(ÚverNieJeSplatený*ÚverJeDobrý,SumaÚrokov,0), 0) -> 33.59 EUR | H56: =IFERROR(IF(ÚverNieJeSplatený*ÚverJeDobrý,KonečnýZostatok,0), 0) -> 7,254.57 EUR
B57: =IFERROR(IF(ÚverNieJeSplatený*ÚverJeDobrý,ČísloPlatby,""), "") -> 41 | C57: =IFERROR(IF(ÚverNieJeSplatený*ÚverJeDobrý,DátumPlatby,PočiatočnýDátumÚveru), PočiatočnýDátumÚveru) -> 2022-12-17 | D57: =IFERROR(IF(ÚverNieJeSplatený*ÚverJeDobrý,HodnotaÚveru,""), "") -> 7,254.57 EUR | E57: =IFERROR(IF(ÚverNieJeSplatený*ÚverJeDobrý,MesačnáSplátka,0), 0) -> 108.53 EUR | F57: =IFERROR(IF(ÚverNieJeSplatený*ÚverJeDobrý,Istina,0), 0) -> 75.28 EUR | G57: =IFERROR(IF(ÚverNieJeSplatený*ÚverJeDobrý,SumaÚrokov,0), 0) -> 33.25 EUR | H57: =IFERROR(IF(ÚverNieJeSplatený*ÚverJeDobrý,KonečnýZostatok,0), 0) -> 7,179.30 EUR
B58: =IFERROR(IF(ÚverNieJeSplatený*ÚverJeDobrý,ČísloPlatby,""), "") -> 42 | C58: =IFERROR(IF(ÚverNieJeSplatený*ÚverJeDobrý,DátumPlatby,PočiatočnýDátumÚveru), PočiatočnýDátumÚveru) -> 2023-01-17 | D58: =IFERROR(IF(ÚverNieJeSplatený*ÚverJeDobrý,HodnotaÚveru,""), "") -> 7,179.30 EUR | E58: =IFERROR(IF(ÚverNieJeSplatený*ÚverJeDobrý,MesačnáSplátka,0), 0) -> 108.53 EUR | F58: =IFERROR(IF(ÚverNieJeSplatený*ÚverJeDobrý,Istina,0), 0) -> 75.62 EUR | G58: =IFERROR(IF(ÚverNieJeSplatený*ÚverJeDobrý,SumaÚrokov,0), 0) -> 32.91 EUR | H58: =IFERROR(IF(ÚverNieJeSplatený*ÚverJeDobrý,KonečnýZostatok,0), 0) -> 7,103.68 EUR
B59: =IFERROR(IF(ÚverNieJeSplatený*ÚverJeDobrý,ČísloPlatby,""), "") -> 43 | C59: =IFERROR(IF(ÚverNieJeSplatený*ÚverJeDobrý,DátumPlatby,PočiatočnýDátumÚveru), PočiatočnýDátumÚveru) -> 2023-02-17 | D59: =IFERROR(IF(ÚverNieJeSplatený*ÚverJeDobrý,HodnotaÚveru,""), "") -> 7,103.68 EUR | E59: =IFERROR(IF(ÚverNieJeSplatený*ÚverJeDobrý,MesačnáSplátka,0), 0) -> 108.53 EUR | F59: =IFERROR(IF(ÚverNieJeSplatený*ÚverJeDobrý,Istina,0), 0) -> 75.97 EUR | G59: =IFERROR(IF(ÚverNieJeSplatený*ÚverJeDobrý,SumaÚrokov,0), 0) -> 32.56 EUR | H59: =IFERROR(IF(ÚverNieJeSplatený*ÚverJeDobrý,KonečnýZostatok,0), 0) -> 7,027.71 EUR
B60: =IFERROR(IF(ÚverNieJeSplatený*ÚverJeDobrý,ČísloPlatby,""), "") -> 44 | C60: =IFERROR(IF(ÚverNieJeSplatený*ÚverJeDobrý,DátumPlatby,PočiatočnýDátumÚveru), PočiatočnýDátumÚveru) -> 2023-03-17 | D60: =IFERROR(IF(ÚverNieJeSplatený*ÚverJeDobrý,HodnotaÚveru,""), "") -> 7,027.71 EUR | E60: =IFERROR(IF(ÚverNieJeSplatený*ÚverJeDobrý,MesačnáSplátka,0), 0) -> 108.53 EUR | F60: =IFERROR(IF(ÚverNieJeSplatený*ÚverJeDobrý,Istina,0), 0) -> 76.32 EUR | G60: =IFERROR(IF(ÚverNieJeSplatený*ÚverJeDobrý,SumaÚrokov,0), 0) -> 32.21 EUR | H60: =IFERROR(IF(ÚverNieJeSplatený*ÚverJeDobrý,KonečnýZostatok,0), 0) -> 6,951.39 EUR
B61: =IFERROR(IF(ÚverNieJeSplatený*ÚverJeDobrý,ČísloPlatby,""), "") -> 45 | C61: =IFERROR(IF(ÚverNieJeSplatený*ÚverJeDobrý,DátumPlatby,PočiatočnýDátumÚveru), PočiatočnýDátumÚveru) -> 2023-04-17 | D61: =IFERROR(IF(ÚverNieJeSplatený*ÚverJeDobrý,HodnotaÚveru,""), "") -> 6,951.39 EUR | E61: =IFERROR(IF(ÚverNieJeSplatený*ÚverJeDobrý,MesačnáSplátka,0), 0) -> 108.53 EUR | F61: =IFERROR(IF(ÚverNieJeSplatený*ÚverJeDobrý,Istina,0), 0) -> 76.67 EUR | G61: =IFERROR(IF(ÚverNieJeSplatený*ÚverJeDobrý,SumaÚrokov,0), 0) -> 31.86 EUR | H61: =IFERROR(IF(ÚverNieJeSplatený*ÚverJeDobrý,KonečnýZostatok,0), 0) -> 6,874.73 EUR
B62: =IFERROR(IF(ÚverNieJeSplatený*ÚverJeDobrý,ČísloPlatby,""), "") -> 46 | C62: =IFERROR(IF(ÚverNieJeSplatený*ÚverJeDobrý,DátumPlatby,PočiatočnýDátumÚveru), PočiatočnýDátumÚveru) -> 2023-05-17 | D62: =IFERROR(IF(ÚverNieJeSplatený*ÚverJeDobrý,HodnotaÚveru,""), "") -> 6,874.73 EUR | E62: =IFERROR(IF(ÚverNieJeSplatený*ÚverJeDobrý,MesačnáSplátka,0), 0) -> 108.53 EUR | F62: =IFERROR(IF(ÚverNieJeSplatený*ÚverJeDobrý,Istina,0), 0) -> 77.02 EUR | G62: =IFERROR(IF(ÚverNieJeSplatený*ÚverJeDobrý,SumaÚrokov,0), 0) -> 31.51 EUR | H62: =IFERROR(IF(ÚverNieJeSplatený*ÚverJeDobrý,KonečnýZostatok,0), 0) -> 6,797.71 EUR
B63: =IFERROR(IF(ÚverNieJeSplatený*ÚverJeDobrý,ČísloPlatby,""), "") -> 47 | C63: =IFERROR(IF(ÚverNieJeSplatený*ÚverJeDobrý,DátumPlatby,PočiatočnýDátumÚveru), PočiatočnýDátumÚveru) -> 2023-06-17 | D63: =IFERROR(IF(ÚverNieJeSplatený*ÚverJeDobrý,HodnotaÚveru,""), "") -> 6,797.71 EUR | E63: =IFERROR(IF(ÚverNieJeSplatený*ÚverJeDobrý,MesačnáSplátka,0), 0) -> 108.53 EUR | F63: =IFERROR(IF(ÚverNieJeSplatený*ÚverJeDobrý,Istina,0), 0) -> 77.37 EUR | G63: =IFERROR(IF(ÚverNieJeSplatený*ÚverJeDobrý,SumaÚrokov,0), 0) -> 31.16 EUR | H63: =IFERROR(IF(ÚverNieJeSplatený*ÚverJeDobrý,KonečnýZostatok,0), 0) -> 6,720.34 EUR
B64: =IFERROR(IF(ÚverNieJeSplatený*ÚverJeDobrý,ČísloPlatby,""), "") -> 48 | C64: =IFERROR(IF(ÚverNieJeSplatený*ÚverJeDobrý,DátumPlatby,PočiatočnýDátumÚveru), PočiatočnýDátumÚveru) -> 2023-07-17 | D64: =IFERROR(IF(ÚverNieJeSplatený*ÚverJeDobrý,HodnotaÚveru,""), "") -> 6,720.34 EUR | E64: =IFERROR(IF(ÚverNieJeSplatený*ÚverJeDobrý,MesačnáSplátka,0), 0) -> 108.53 EUR | F64: =IFERROR(IF(ÚverNieJeSplatený*ÚverJeDobrý,Istina,0), 0) -> 77.72 EUR | G64: =IFERROR(IF(ÚverNieJeSplatený*ÚverJeDobrý,SumaÚrokov,0), 0) -> 30.80 EUR | H64: =IFERROR(IF(ÚverNieJeSplatený*ÚverJeDobrý,KonečnýZostatok,0), 0) -> 6,642.61 EUR
B65: =IFERROR(IF(ÚverNieJeSplatený*ÚverJeDobrý,ČísloPlatby,""), "") -> 49 | C65: =IFERROR(IF(ÚverNieJeSplatený*ÚverJeDobrý,DátumPlatby,PočiatočnýDátumÚveru), PočiatočnýDátumÚveru) -> 2023-08-17 | D65: =IFERROR(IF(ÚverNieJeSplatený*ÚverJeDobrý,HodnotaÚveru,""), "") -> 6,642.61 EUR | E65: =IFERROR(IF(ÚverNieJeSplatený*ÚverJeDobrý,MesačnáSplátka,0), 0) -> 108.53 EUR | F65: =IFERROR(IF(ÚverNieJeSplatený*ÚverJeDobrý,Istina,0), 0) -> 78.08 EUR | G65: =IFERROR(IF(ÚverNieJeSplatený*ÚverJeDobrý,SumaÚrokov,0), 0) -> 30.45 EUR | H65: =IFERROR(IF(ÚverNieJeSplatený*ÚverJeDobrý,KonečnýZostatok,0), 0) -> 6,564.53 EUR
B66: =IFERROR(IF(ÚverNieJeSplatený*ÚverJeDobrý,ČísloPlatby,""), "") -> 50 | C66: =IFERROR(IF(ÚverNieJeSplatený*ÚverJeDobrý,DátumPlatby,PočiatočnýDátumÚveru), PočiatočnýDátumÚveru) -> 2023-09-17 | D66: =IFERROR(IF(ÚverNieJeSplatený*ÚverJeDobrý,HodnotaÚveru,""), "") -> 6,564.53 EUR | E66: =IFERROR(IF(ÚverNieJeSplatený*ÚverJeDobrý,MesačnáSplátka,0), 0) -> 108.53 EUR | F66: =IFERROR(IF(ÚverNieJeSplatený*ÚverJeDobrý,Istina,0), 0) -> 78.44 EUR | G66: =IFERROR(IF(ÚverNieJeSplatený*ÚverJeDobrý,SumaÚrokov,0), 0) -> 30.09 EUR | H66: =IFERROR(IF(ÚverNieJeSplatený*ÚverJeDobrý,KonečnýZostatok,0), 0) -> 6,486.09 EUR
B67: =IFERROR(IF(ÚverNieJeSplatený*ÚverJeDobrý,ČísloPlatby,""), "") -> 51 | C67: =IFERROR(IF(ÚverNieJeSplatený*ÚverJeDobrý,DátumPlatby,PočiatočnýDátumÚveru), PočiatočnýDátumÚveru) -> 2023-10-17 | D67: =IFERROR(IF(ÚverNieJeSplatený*ÚverJeDobrý,HodnotaÚveru,""), "") -> 6,486.09 EUR | E67: =IFERROR(IF(ÚverNieJeSplatený*ÚverJeDobrý,MesačnáSplátka,0), 0) -> 108.53 EUR | F67: =IFERROR(IF(ÚverNieJeSplatený*ÚverJeDobrý,Istina,0), 0) -> 78.80 EUR | G67: =IFERROR(IF(ÚverNieJeSplatený*ÚverJeDobrý,SumaÚrokov,0), 0) -> 29.73 EUR | H67: =IFERROR(IF(ÚverNieJeSplatený*ÚverJeDobrý,KonečnýZostatok,0), 0) -> 6,407.30 EUR
B68: =IFERROR(IF(ÚverNieJeSplatený*ÚverJeDobrý,ČísloPlatby,""), "") -> 52 | C68: =IFERROR(IF(ÚverNieJeSplatený*ÚverJeDobrý,DátumPlatby,PočiatočnýDátumÚveru), PočiatočnýDátumÚveru) -> 2023-11-17 | D68: =IFERROR(IF(ÚverNieJeSplatený*ÚverJeDobrý,HodnotaÚveru,""), "") -> 6,407.30 EUR | E68: =IFERROR(IF(ÚverNieJeSplatený*ÚverJeDobrý,MesačnáSplátka,0), 0) -> 108.53 EUR | F68: =IFERROR(IF(ÚverNieJeSplatený*ÚverJeDobrý,Istina,0), 0) -> 79.16 EUR | G68: =IFERROR(IF(ÚverNieJeSplatený*ÚverJeDobrý,SumaÚrokov,0), 0) -> 29.37 EUR | H68: =IFERROR(IF(ÚverNieJeSplatený*ÚverJeDobrý,KonečnýZostatok,0), 0) -> 6,328.14 EUR
B69: =IFERROR(IF(ÚverNieJeSplatený*ÚverJeDobrý,ČísloPlatby,""), "") -> 53 | C69: =IFERROR(IF(ÚverNieJeSplatený*ÚverJeDobrý,DátumPlatby,PočiatočnýDátumÚveru), PočiatočnýDátumÚveru) -> 2023-12-17 | D69: =IFERROR(IF(ÚverNieJeSplatený*ÚverJeDobrý,HodnotaÚveru,""), "") -> 6,328.14 EUR | E69: =IFERROR(IF(ÚverNieJeSplatený*ÚverJeDobrý,MesačnáSplátka,0), 0) -> 108.53 EUR | F69: =IFERROR(IF(ÚverNieJeSplatený*ÚverJeDobrý,Istina,0), 0) -> 79.52 EUR | G69: =IFERROR(IF(ÚverNieJeSplatený*ÚverJeDobrý,SumaÚrokov,0), 0) -> 29.00 EUR | H69: =IFERROR(IF(ÚverNieJeSplatený*ÚverJeDobrý,KonečnýZostatok,0), 0) -> 6,248.61 EUR
B70: =IFERROR(IF(ÚverNieJeSplatený*ÚverJeDobrý,ČísloPlatby,""), "") -> 54 | C70: =IFERROR(IF(ÚverNieJeSplatený*ÚverJeDobrý,DátumPlatby,PočiatočnýDátumÚveru), PočiatočnýDátumÚveru) -> 2024-01-17 | D70: =IFERROR(IF(ÚverNieJeSplatený*ÚverJeDobrý,HodnotaÚveru,""), "") -> 6,248.61 EUR | E70: =IFERROR(IF(ÚverNieJeSplatený*ÚverJeDobrý,MesačnáSplátka,0), 0) -> 108.53 EUR | F70: =IFERROR(IF(ÚverNieJeSplatený*ÚverJeDobrý,Istina,0), 0) -> 79.89 EUR | G70: =IFERROR(IF(ÚverNieJeSplatený*ÚverJeDobrý,SumaÚrokov,0), 0) -> 28.64 EUR | H70: =IFERROR(IF(ÚverNieJeSplatený*ÚverJeDobrý,KonečnýZostatok,0), 0) -> 6,168.73 EUR
B71: =IFERROR(IF(ÚverNieJeSplatený*ÚverJeDobrý,ČísloPlatby,""), "") -> 55 | C71: =IFERROR(IF(ÚverNieJeSplatený*ÚverJeDobrý,DátumPlatby,PočiatočnýDátumÚveru), PočiatočnýDátumÚveru) -> 2024-02-17 | D71: =IFERROR(IF(ÚverNieJeSplatený*ÚverJeDobrý,HodnotaÚveru,""), "") -> 6,168.73 EUR | E71: =IFERROR(IF(ÚverNieJeSplatený*ÚverJeDobrý,MesačnáSplátka,0), 0) -> 108.53 EUR | F71: =IFERROR(IF(ÚverNieJeSplatený*ÚverJeDobrý,Istina,0), 0) -> 80.25 EUR | G71: =IFERROR(IF(ÚverNieJeSplatený*ÚverJeDobrý,SumaÚrokov,0), 0) -> 28.27 EUR | H71: =IFERROR(IF(ÚverNieJeSplatený*ÚverJeDobrý,KonečnýZostatok,0), 0) -> 6,088.47 EUR
B72: =IFERROR(IF(ÚverNieJeSplatený*ÚverJeDobrý,ČísloPlatby,""), "") -> 56 | C72: =IFERROR(IF(ÚverNieJeSplatený*ÚverJeDobrý,DátumPlatby,PočiatočnýDátumÚveru), PočiatočnýDátumÚveru) -> 2024-03-17 | D72: =IFERROR(IF(ÚverNieJeSplatený*ÚverJeDobrý,HodnotaÚveru,""), "") -> 6,088.47 EUR | E72: =IFERROR(IF(ÚverNieJeSplatený*ÚverJeDobrý,MesačnáSplátka,0), 0) -> 108.53 EUR | F72: =IFERROR(IF(ÚverNieJeSplatený*ÚverJeDobrý,Istina,0), 0) -> 80.62 EUR | G72: =IFERROR(IF(ÚverNieJeSplatený*ÚverJeDobrý,SumaÚrokov,0), 0) -> 27.91 EUR | H72: =IFERROR(IF(ÚverNieJeSplatený*ÚverJeDobrý,KonečnýZostatok,0), 0) -> 6,007.85 EUR
B73: =IFERROR(IF(ÚverNieJeSplatený*ÚverJeDobrý,ČísloPlatby,""), "") -> 57 | C73: =IFERROR(IF(ÚverNieJeSplatený*ÚverJeDobrý,DátumPlatby,PočiatočnýDátumÚveru), PočiatočnýDátumÚveru) -> 2024-04-17 | D73: =IFERROR(IF(ÚverNieJeSplatený*ÚverJeDobrý,HodnotaÚveru,""), "") -> 6,007.85 EUR | E73: =IFERROR(IF(ÚverNieJeSplatený*ÚverJeDobrý,MesačnáSplátka,0), 0) -> 108.53 EUR | F73: =IFERROR(IF(ÚverNieJeSplatený*ÚverJeDobrý,Istina,0), 0) -> 80.99 EUR | G73: =IFERROR(IF(ÚverNieJeSplatený*ÚverJeDobrý,SumaÚrokov,0), 0) -> 27.54 EUR | H73: =IFERROR(IF(ÚverNieJeSplatený*ÚverJeDobrý,KonečnýZostatok,0), 0) -> 5,926.86 EUR
B74: =IFERROR(IF(ÚverNieJeSplatený*ÚverJeDobrý,ČísloPlatby,""), "") -> 58 | C74: =IFERROR(IF(ÚverNieJeSplatený*ÚverJeDobrý,DátumPlatby,PočiatočnýDátumÚveru), PočiatočnýDátumÚveru) -> 2024-05-17 | D74: =IFERROR(IF(ÚverNieJeSplatený*ÚverJeDobrý,HodnotaÚveru,""), "") -> 5,926.86 EUR | E74: =IFERROR(IF(ÚverNieJeSplatený*ÚverJeDobrý,MesačnáSplátka,0), 0) -> 108.53 EUR | F74: =IFERROR(IF(ÚverNieJeSplatený*ÚverJeDobrý,Istina,0), 0) -> 81.36 EUR | G74: =IFERROR(IF(ÚverNieJeSplatený*ÚverJeDobrý,SumaÚrokov,0), 0) -> 27.16 EUR | H74: =IFERROR(IF(ÚverNieJeSplatený*ÚverJeDobrý,KonečnýZostatok,0), 0) -> 5,845.50 EUR
B75: =IFERROR(IF(ÚverNieJeSplatený*ÚverJeDobrý,ČísloPlatby,""), "") -> 59 | C75: =IFERROR(IF(ÚverNieJeSplatený*ÚverJeDobrý,DátumPlatby,PočiatočnýDátumÚveru), PočiatočnýDátumÚveru) -> 2024-06-17 | D75: =IFERROR(IF(ÚverNieJeSplatený*ÚverJeDobrý,HodnotaÚveru,""), "") -> 5,845.50 EUR | E75: =IFERROR(IF(ÚverNieJeSplatený*ÚverJeDobrý,MesačnáSplátka,0), 0) -> 108.53 EUR | F75: =IFERROR(IF(ÚverNieJeSplatený*ÚverJeDobrý,Istina,0), 0) -> 81.73 EUR | G75: =IFERROR(IF(ÚverNieJeSplatený*ÚverJeDobrý,SumaÚrokov,0), 0) -> 26.79 EUR | H75: =IFERROR(IF(ÚverNieJeSplatený*ÚverJeDobrý,KonečnýZostatok,0), 0) -> 5,763.77 EUR
B76: =IFERROR(IF(ÚverNieJeSplatený*ÚverJeDobrý,ČísloPlatby,""), "") -> 60 | C76: =IFERROR(IF(ÚverNieJeSplatený*ÚverJeDobrý,DátumPlatby,PočiatočnýDátumÚveru), PočiatočnýDátumÚveru) -> 2024-07-17 | D76: =IFERROR(IF(ÚverNieJeSplatený*ÚverJeDobrý,HodnotaÚveru,""), "") -> 5,763.77 EUR | E76: =IFERROR(IF(ÚverNieJeSplatený*ÚverJeDobrý,MesačnáSplátka,0), 0) -> 108.53 EUR | F76: =IFERROR(IF(ÚverNieJeSplatený*ÚverJeDobrý,Istina,0), 0) -> 82.11 EUR | G76: =IFERROR(IF(ÚverNieJeSplatený*ÚverJeDobrý,SumaÚrokov,0), 0) -> 26.42 EUR | H76: =IFERROR(IF(ÚverNieJeSplatený*ÚverJeDobrý,KonečnýZostatok,0), 0) -> 5,681.66 EUR
B77: =IFERROR(IF(ÚverNieJeSplatený*ÚverJeDobrý,ČísloPlatby,""), "") -> 61 | C77: =IFERROR(IF(ÚverNieJeSplatený*ÚverJeDobrý,DátumPlatby,PočiatočnýDátumÚveru), PočiatočnýDátumÚveru) -> 2024-08-17 | D77: =IFERROR(IF(ÚverNieJeSplatený*ÚverJeDobrý,HodnotaÚveru,""), "") -> 5,681.66 EUR | E77: =IFERROR(IF(ÚverNieJeSplatený*ÚverJeDobrý,MesačnáSplátka,0), 0) -> 108.53 EUR | F77: =IFERROR(IF(ÚverNieJeSplatený*ÚverJeDobrý,Istina,0), 0) -> 82.49 EUR | G77: =IFERROR(IF(ÚverNieJeSplatený*ÚverJeDobrý,SumaÚrokov,0), 0) -> 26.04 EUR | H77: =IFERROR(IF(ÚverNieJeSplatený*ÚverJeDobrý,KonečnýZostatok,0), 0) -> 5,599.17 EUR
B78: =IFERROR(IF(ÚverNieJeSplatený*ÚverJeDobrý,ČísloPlatby,""), "") -> 62 | C78: =IFERROR(IF(ÚverNieJeSplatený*ÚverJeDobrý,DátumPlatby,PočiatočnýDátumÚveru), PočiatočnýDátumÚveru) -> 2024-09-17 | D78: =IFERROR(IF(ÚverNieJeSplatený*ÚverJeDobrý,HodnotaÚveru,""), "") -> 5,599.17 EUR | E78: =IFERROR(IF(ÚverNieJeSplatený*ÚverJeDobrý,MesačnáSplátka,0), 0) -> 108.53 EUR | F78: =IFERROR(IF(ÚverNieJeSplatený*ÚverJeDobrý,Istina,0), 0) -> 82.86 EUR | G78: =IFERROR(IF(ÚverNieJeSplatený*ÚverJeDobrý,SumaÚrokov,0), 0) -> 25.66 EUR | H78: =IFERROR(IF(ÚverNieJeSplatený*ÚverJeDobrý,KonečnýZostatok,0), 0) -> 5,516.31 EUR
B79: =IFERROR(IF(ÚverNieJeSplatený*ÚverJeDobrý,ČísloPlatby,""), "") -> 63 | C79: =IFERROR(IF(ÚverNieJeSplatený*ÚverJeDobrý,DátumPlatby,PočiatočnýDátumÚveru), PočiatočnýDátumÚveru) -> 2024-10-17 | D79: =IFERROR(IF(ÚverNieJeSplatený*ÚverJeDobrý,HodnotaÚveru,""), "") -> 5,516.31 EUR | E79: =IFERROR(IF(ÚverNieJeSplatený*ÚverJeDobrý,MesačnáSplátka,0), 0) -> 108.53 EUR | F79: =IFERROR(IF(ÚverNieJeSplatený*ÚverJeDobrý,Istina,0), 0) -> 83.24 EUR | G79: =IFERROR(IF(ÚverNieJeSplatený*ÚverJeDobrý,SumaÚrokov,0), 0) -> 25.28 EUR | H79: =IFERROR(IF(ÚverNieJeSplatený*ÚverJeDobrý,KonečnýZostatok,0), 0) -> 5,433.07 EUR
B80: =IFERROR(IF(ÚverNieJeSplatený*ÚverJeDobrý,ČísloPlatby,""), "") -> 64 | C80: =IFERROR(IF(ÚverNieJeSplatený*ÚverJeDobrý,DátumPlatby,PočiatočnýDátumÚveru), PočiatočnýDátumÚveru) -> 2024-11-17 | D80: =IFERROR(IF(ÚverNieJeSplatený*ÚverJeDobrý,HodnotaÚveru,""), "") -> 5,433.07 EUR | E80: =IFERROR(IF(ÚverNieJeSplatený*ÚverJeDobrý,MesačnáSplátka,0), 0) -> 108.53 EUR | F80: =IFERROR(IF(ÚverNieJeSplatený*ÚverJeDobrý,Istina,0), 0) -> 83.62 EUR | G80: =IFERROR(IF(ÚverNieJeSplatený*ÚverJeDobrý,SumaÚrokov,0), 0) -> 24.90 EUR | H80: =IFERROR(IF(ÚverNieJeSplatený*ÚverJeDobrý,KonečnýZostatok,0), 0) -> 5,349.44 EUR
B81: =IFERROR(IF(ÚverNieJeSplatený*ÚverJeDobrý,ČísloPlatby,""), "") -> 65 | C81: =IFERROR(IF(ÚverNieJeSplatený*ÚverJeDobrý,DátumPlatby,PočiatočnýDátumÚveru), PočiatočnýDátumÚveru) -> 2024-12-17 | D81: =IFERROR(IF(ÚverNieJeSplatený*ÚverJeDobrý,HodnotaÚveru,""), "") -> 5,349.44 EUR | E81: =IFERROR(IF(ÚverNieJeSplatený*ÚverJeDobrý,MesačnáSplátka,0), 0) -> 108.53 EUR | F81: =IFERROR(IF(ÚverNieJeSplatený*ÚverJeDobrý,Istina,0), 0) -> 84.01 EUR | G81: =IFERROR(IF(ÚverNieJeSplatený*ÚverJeDobrý,SumaÚrokov,0), 0) -> 24.52 EUR | H81: =IFERROR(IF(ÚverNieJeSplatený*ÚverJeDobrý,KonečnýZostatok,0), 0) -> 5,265.43 EUR
B82: =IFERROR(IF(ÚverNieJeSplatený*ÚverJeDobrý,ČísloPlatby,""), "") -> 66 | C82: =IFERROR(IF(ÚverNieJeSplatený*ÚverJeDobrý,DátumPlatby,PočiatočnýDátumÚveru), PočiatočnýDátumÚveru) -> 2025-01-17 | D82: =IFERROR(IF(ÚverNieJeSplatený*ÚverJeDobrý,HodnotaÚveru,""), "") -> 5,265.43 EUR | E82: =IFERROR(IF(ÚverNieJeSplatený*ÚverJeDobrý,MesačnáSplátka,0), 0) -> 108.53 EUR | F82: =IFERROR(IF(ÚverNieJeSplatený*ÚverJeDobrý,Istina,0), 0) -> 84.39 EUR | G82: =IFERROR(IF(ÚverNieJeSplatený*ÚverJeDobrý,SumaÚrokov,0), 0) -> 24.13 EUR | H82: =IFERROR(IF(ÚverNieJeSplatený*ÚverJeDobrý,KonečnýZostatok,0), 0) -> 5,181.04 EUR
B83: =IFERROR(IF(ÚverNieJeSplatený*ÚverJeDobrý,ČísloPlatby,""), "") -> 67 | C83: =IFERROR(IF(ÚverNieJeSplatený*ÚverJeDobrý,DátumPlatby,PočiatočnýDátumÚveru), PočiatočnýDátumÚveru) -> 2025-02-17 | D83: =IFERROR(IF(ÚverNieJeSplatený*ÚverJeDobrý,HodnotaÚveru,""), "") -> 5,181.04 EUR | E83: =IFERROR(IF(ÚverNieJeSplatený*ÚverJeDobrý,MesačnáSplátka,0), 0) -> 108.53 EUR | F83: =IFERROR(IF(ÚverNieJeSplatený*ÚverJeDobrý,Istina,0), 0) -> 84.78 EUR | G83: =IFERROR(IF(ÚverNieJeSplatený*ÚverJeDobrý,SumaÚrokov,0), 0) -> 23.75 EUR | H83: =IFERROR(IF(ÚverNieJeSplatený*ÚverJeDobrý,KonečnýZostatok,0), 0) -> 5,096.26 EUR
B84: =IFERROR(IF(ÚverNieJeSplatený*ÚverJeDobrý,ČísloPlatby,""), "") -> 68 | C84: =IFERROR(IF(ÚverNieJeSplatený*ÚverJeDobrý,DátumPlatby,PočiatočnýDátumÚveru), PočiatočnýDátumÚveru) -> 2025-03-17 | D84: =IFERROR(IF(ÚverNieJeSplatený*ÚverJeDobrý,HodnotaÚveru,""), "") -> 5,096.26 EUR | E84: =IFERROR(IF(ÚverNieJeSplatený*ÚverJeDobrý,MesačnáSplátka,0), 0) -> 108.53 EUR | F84: =IFERROR(IF(ÚverNieJeSplatený*ÚverJeDobrý,Istina,0), 0) -> 85.17 EUR | G84: =IFERROR(IF(ÚverNieJeSplatený*ÚverJeDobrý,SumaÚrokov,0), 0) -> 23.36 EUR | H84: =IFERROR(IF(ÚverNieJeSplatený*ÚverJeDobrý,KonečnýZostatok,0), 0) -> 5,011.09 EUR
B85: =IFERROR(IF(ÚverNieJeSplatený*ÚverJeDobrý,ČísloPlatby,""), "") -> 69 | C85: =IFERROR(IF(ÚverNieJeSplatený*ÚverJeDobrý,DátumPlatby,PočiatočnýDátumÚveru), PočiatočnýDátumÚveru) -> 2025-04-17 | D85: =IFERROR(IF(ÚverNieJeSplatený*ÚverJeDobrý,HodnotaÚveru,""), "") -> 5,011.09 EUR | E85: =IFERROR(IF(ÚverNieJeSplatený*ÚverJeDobrý,MesačnáSplátka,0), 0) -> 108.53 EUR | F85: =IFERROR(IF(ÚverNieJeSplatený*ÚverJeDobrý,Istina,0), 0) -> 85.56 EUR | G85: =IFERROR(IF(ÚverNieJeSplatený*ÚverJeDobrý,SumaÚrokov,0), 0) -> 22.97 EUR | H85: =IFERROR(IF(ÚverNieJeSplatený*ÚverJeDobrý,KonečnýZostatok,0), 0) -> 4,925.53 EUR
B86: =IFERROR(IF(ÚverNieJeSplatený*ÚverJeDobrý,ČísloPlatby,""), "") -> 70 | C86: =IFERROR(IF(ÚverNieJeSplatený*ÚverJeDobrý,DátumPlatby,PočiatočnýDátumÚveru), PočiatočnýDátumÚveru) -> 2025-05-17 | D86: =IFERROR(IF(ÚverNieJeSplatený*ÚverJeDobrý,HodnotaÚveru,""), "") -> 4,925.53 EUR | E86: =IFERROR(IF(ÚverNieJeSplatený*ÚverJeDobrý,MesačnáSplátka,0), 0) -> 108.53 EUR | F86: =IFERROR(IF(ÚverNieJeSplatený*ÚverJeDobrý,Istina,0), 0) -> 85.95 EUR | G86: =IFERROR(IF(ÚverNieJeSplatený*ÚverJeDobrý,SumaÚrokov,0), 0) -> 22.58 EUR | H86: =IFERROR(IF(ÚverNieJeSplatený*ÚverJeDobrý,KonečnýZostatok,0), 0) -> 4,839.58 EUR
B87: =IFERROR(IF(ÚverNieJeSplatený*ÚverJeDobrý,ČísloPlatby,""), "") -> 71 | C87: =IFERROR(IF(ÚverNieJeSplatený*ÚverJeDobrý,DátumPlatby,PočiatočnýDátumÚveru), PočiatočnýDátumÚveru) -> 2025-06-17 | D87: =IFERROR(IF(ÚverNieJeSplatený*ÚverJeDobrý,HodnotaÚveru,""), "") -> 4,839.58 EUR | E87: =IFERROR(IF(ÚverNieJeSplatený*ÚverJeDobrý,MesačnáSplátka,0), 0) -> 108.53 EUR | F87: =IFERROR(IF(ÚverNieJeSplatený*ÚverJeDobrý,Istina,0), 0) -> 86.34 EUR | G87: =IFERROR(IF(ÚverNieJeSplatený*ÚverJeDobrý,SumaÚrokov,0), 0) -> 22.18 EUR | H87: =IFERROR(IF(ÚverNieJeSplatený*ÚverJeDobrý,KonečnýZostatok,0), 0) -> 4,753.24 EUR
B88: =IFERROR(IF(ÚverNieJeSplatený*ÚverJeDobrý,ČísloPlatby,""), "") -> 72 | C88: =IFERROR(IF(ÚverNieJeSplatený*ÚverJeDobrý,DátumPlatby,PočiatočnýDátumÚveru), PočiatočnýDátumÚveru) -> 2025-07-17 | D88: =IFERROR(IF(ÚverNieJeSplatený*ÚverJeDobrý,HodnotaÚveru,""), "") -> 4,753.24 EUR | E88: =IFERROR(IF(ÚverNieJeSplatený*ÚverJeDobrý,MesačnáSplátka,0), 0) -> 108.53 EUR | F88: =IFERROR(IF(ÚverNieJeSplatený*ÚverJeDobrý,Istina,0), 0) -> 86.74 EUR | G88: =IFERROR(IF(ÚverNieJeSplatený*ÚverJeDobrý,SumaÚrokov,0), 0) -> 21.79 EUR | H88: =IFERROR(IF(ÚverNieJeSplatený*ÚverJeDobrý,KonečnýZostatok,0), 0) -> 4,666.50 EUR
B89: =IFERROR(IF(ÚverNieJeSplatený*ÚverJeDobrý,ČísloPlatby,""), "") -> 73 | C89: =IFERROR(IF(ÚverNieJeSplatený*ÚverJeDobrý,DátumPlatby,PočiatočnýDátumÚveru), PočiatočnýDátumÚveru) -> 2025-08-17 | D89: =IFERROR(IF(ÚverNieJeSplatený*ÚverJeDobrý,HodnotaÚveru,""), "") -> 4,666.50 EUR | E89: =IFERROR(IF(ÚverNieJeSplatený*ÚverJeDobrý,MesačnáSplátka,0), 0) -> 108.53 EUR | F89: =IFERROR(IF(ÚverNieJeSplatený*ÚverJeDobrý,Istina,0), 0) -> 87.14 EUR | G89: =IFERROR(IF(ÚverNieJeSplatený*ÚverJeDobrý,SumaÚrokov,0), 0) -> 21.39 EUR | H89: =IFERROR(IF(ÚverNieJeSplatený*ÚverJeDobrý,KonečnýZostatok,0), 0) -> 4,579.36 EUR
B90: =IFERROR(IF(ÚverNieJeSplatený*ÚverJeDobrý,ČísloPlatby,""), "") -> 74 | C90: =IFERROR(IF(ÚverNieJeSplatený*ÚverJeDobrý,DátumPlatby,PočiatočnýDátumÚveru), PočiatočnýDátumÚveru) -> 2025-09-17 | D90: =IFERROR(IF(ÚverNieJeSplatený*ÚverJeDobrý,HodnotaÚveru,""), "") -> 4,579.36 EUR | E90: =IFERROR(IF(ÚverNieJeSplatený*ÚverJeDobrý,MesačnáSplátka,0), 0) -> 108.53 EUR | F90: =IFERROR(IF(ÚverNieJeSplatený*ÚverJeDobrý,Istina,0), 0) -> 87.54 EUR | G90: =IFERROR(IF(ÚverNieJeSplatený*ÚverJeDobrý,SumaÚrokov,0), 0) -> 20.99 EUR | H90: =IFERROR(IF(ÚverNieJeSplatený*ÚverJeDobrý,KonečnýZostatok,0), 0) -> 4,491.82 EUR
B91: =IFERROR(IF(ÚverNieJeSplatený*ÚverJeDobrý,ČísloPlatby,""), "") -> 75 | C91: =IFERROR(IF(ÚverNieJeSplatený*ÚverJeDobrý,DátumPlatby,PočiatočnýDátumÚveru), PočiatočnýDátumÚveru) -> 2025-10-17 | D91: =IFERROR(IF(ÚverNieJeSplatený*ÚverJeDobrý,HodnotaÚveru,""), "") -> 4,491.82 EUR | E91: =IFERROR(IF(ÚverNieJeSplatený*ÚverJeDobrý,MesačnáSplátka,0), 0) -> 108.53 EUR | F91: =IFERROR(IF(ÚverNieJeSplatený*ÚverJeDobrý,Istina,0), 0) -> 87.94 EUR | G91: =IFERROR(IF(ÚverNieJeSplatený*ÚverJeDobrý,SumaÚrokov,0), 0) -> 20.59 EUR | H91: =IFERROR(IF(ÚverNieJeSplatený*ÚverJeDobrý,KonečnýZostatok,0), 0) -> 4,403.88 EUR
B92: =IFERROR(IF(ÚverNieJeSplatený*ÚverJeDobrý,ČísloPlatby,""), "") -> 76 | C92: =IFERROR(IF(ÚverNieJeSplatený*ÚverJeDobrý,DátumPlatby,PočiatočnýDátumÚveru), PočiatočnýDátumÚveru) -> 2025-11-17 | D92: =IFERROR(IF(ÚverNieJeSplatený*ÚverJeDobrý,HodnotaÚveru,""), "") -> 4,403.88 EUR | E92: =IFERROR(IF(ÚverNieJeSplatený*ÚverJeDobrý,MesačnáSplátka,0), 0) -> 108.53 EUR | F92: =IFERROR(IF(ÚverNieJeSplatený*ÚverJeDobrý,Istina,0), 0) -> 88.34 EUR | G92: =IFERROR(IF(ÚverNieJeSplatený*ÚverJeDobrý,SumaÚrokov,0), 0) -> 20.18 EUR | H92: =IFERROR(IF(ÚverNieJeSplatený*ÚverJeDobrý,KonečnýZostatok,0), 0) -> 4,315.54 EUR
B93: =IFERROR(IF(ÚverNieJeSplatený*ÚverJeDobrý,ČísloPlatby,""), "") -> 77 | C93: =IFERROR(IF(ÚverNieJeSplatený*ÚverJeDobrý,DátumPlatby,PočiatočnýDátumÚveru), PočiatočnýDátumÚveru) -> 2025-12-17 | D93: =IFERROR(IF(ÚverNieJeSplatený*ÚverJeDobrý,HodnotaÚveru,""), "") -> 4,315.54 EUR | E93: =IFERROR(IF(ÚverNieJeSplatený*ÚverJeDobrý,MesačnáSplátka,0), 0) -> 108.53 EUR | F93: =IFERROR(IF(ÚverNieJeSplatený*ÚverJeDobrý,Istina,0), 0) -> 88.75 EUR | G93: =IFERROR(IF(ÚverNieJeSplatený*ÚverJeDobrý,SumaÚrokov,0), 0) -> 19.78 EUR | H93: =IFERROR(IF(ÚverNieJeSplatený*ÚverJeDobrý,KonečnýZostatok,0), 0) -> 4,226.79 EUR
B94: =IFERROR(IF(ÚverNieJeSplatený*ÚverJeDobrý,ČísloPlatby,""), "") -> 78 | C94: =IFERROR(IF(ÚverNieJeSplatený*ÚverJeDobrý,DátumPlatby,PočiatočnýDátumÚveru), PočiatočnýDátumÚveru) -> 2026-01-17 | D94: =IFERROR(IF(ÚverNieJeSplatený*ÚverJeDobrý,HodnotaÚveru,""), "") -> 4,226.79 EUR | E94: =IFERROR(IF(ÚverNieJeSplatený*ÚverJeDobrý,MesačnáSplátka,0), 0) -> 108.53 EUR | F94: =IFERROR(IF(ÚverNieJeSplatený*ÚverJeDobrý,Istina,0), 0) -> 89.15 EUR | G94: =IFERROR(IF(ÚverNieJeSplatený*ÚverJeDobrý,SumaÚrokov,0), 0) -> 19.37 EUR | H94: =IFERROR(IF(ÚverNieJeSplatený*ÚverJeDobrý,KonečnýZostatok,0), 0) -> 4,137.64 EUR
B95: =IFERROR(IF(ÚverNieJeSplatený*ÚverJeDobrý,ČísloPlatby,""), "") -> 79 | C95: =IFERROR(IF(ÚverNieJeSplatený*ÚverJeDobrý,DátumPlatby,PočiatočnýDátumÚveru), PočiatočnýDátumÚveru) -> 2026-02-17 | D95: =IFERROR(IF(ÚverNieJeSplatený*ÚverJeDobrý,HodnotaÚveru,""), "") -> 4,137.64 EUR | E95: =IFERROR(IF(ÚverNieJeSplatený*ÚverJeDobrý,MesačnáSplátka,0), 0) -> 108.53 EUR | F95: =IFERROR(IF(ÚverNieJeSplatený*ÚverJeDobrý,Istina,0), 0) -> 89.56 EUR | G95: =IFERROR(IF(ÚverNieJeSplatený*ÚverJeDobrý,SumaÚrokov,0), 0) -> 18.96 EUR | H95: =IFERROR(IF(ÚverNieJeSplatený*ÚverJeDobrý,KonečnýZostatok,0), 0) -> 4,048.08 EUR
B96: =IFERROR(IF(ÚverNieJeSplatený*ÚverJeDobrý,ČísloPlatby,""), "") -> 80 | C96: =IFERROR(IF(ÚverNieJeSplatený*ÚverJeDobrý,DátumPlatby,PočiatočnýDátumÚveru), PočiatočnýDátumÚveru) -> 2026-03-17 | D96: =IFERROR(IF(ÚverNieJeSplatený*ÚverJeDobrý,HodnotaÚveru,""), "") -> 4,048.08 EUR | E96: =IFERROR(IF(ÚverNieJeSplatený*ÚverJeDobrý,MesačnáSplátka,0), 0) -> 108.53 EUR | F96: =IFERROR(IF(ÚverNieJeSplatený*ÚverJeDobrý,Istina,0), 0) -> 89.97 EUR | G96: =IFERROR(IF(ÚverNieJeSplatený*ÚverJeDobrý,SumaÚrokov,0), 0) -> 18.55 EUR | H96: =IFERROR(IF(ÚverNieJeSplatený*ÚverJeDobrý,KonečnýZostatok,0), 0) -> 3,958.11 EUR
B97: =IFERROR(IF(ÚverNieJeSplatený*ÚverJeDobrý,ČísloPlatby,""), "") -> 81 | C97: =IFERROR(IF(ÚverNieJeSplatený*ÚverJeDobrý,DátumPlatby,PočiatočnýDátumÚveru), PočiatočnýDátumÚveru) -> 2026-04-17 | D97: =IFERROR(IF(ÚverNieJeSplatený*ÚverJeDobrý,HodnotaÚveru,""), "") -> 3,958.11 EUR | E97: =IFERROR(IF(ÚverNieJeSplatený*ÚverJeDobrý,MesačnáSplátka,0), 0) -> 108.53 EUR | F97: =IFERROR(IF(ÚverNieJeSplatený*ÚverJeDobrý,Istina,0), 0) -> 90.38 EUR | G97: =IFERROR(IF(ÚverNieJeSplatený*ÚverJeDobrý,SumaÚrokov,0), 0) -> 18.14 EUR | H97: =IFERROR(IF(ÚverNieJeSplatený*ÚverJeDobrý,KonečnýZostatok,0), 0) -> 3,867.72 EUR
B98: =IFERROR(IF(ÚverNieJeSplatený*ÚverJeDobrý,ČísloPlatby,""), "") -> 82 | C98: =IFERROR(IF(ÚverNieJeSplatený*ÚverJeDobrý,DátumPlatby,PočiatočnýDátumÚveru), PočiatočnýDátumÚveru) -> 2026-05-17 | D98: =IFERROR(IF(ÚverNieJeSplatený*ÚverJeDobrý,HodnotaÚveru,""), "") -> 3,867.72 EUR | E98: =IFERROR(IF(ÚverNieJeSplatený*ÚverJeDobrý,MesačnáSplátka,0), 0) -> 108.53 EUR | F98: =IFERROR(IF(ÚverNieJeSplatený*ÚverJeDobrý,Istina,0), 0) -> 90.80 EUR | G98: =IFERROR(IF(ÚverNieJeSplatený*ÚverJeDobrý,SumaÚrokov,0), 0) -> 17.73 EUR | H98: =IFERROR(IF(ÚverNieJeSplatený*ÚverJeDobrý,KonečnýZostatok,0), 0) -> 3,776.92 EUR
B99: =IFERROR(IF(ÚverNieJeSplatený*ÚverJeDobrý,ČísloPlatby,""), "") -> 83 | C99: =IFERROR(IF(ÚverNieJeSplatený*ÚverJeDobrý,DátumPlatby,PočiatočnýDátumÚveru), PočiatočnýDátumÚveru) -> 2026-06-17 | D99: =IFERROR(IF(ÚverNieJeSplatený*ÚverJeDobrý,HodnotaÚveru,""), "") -> 3,776.92 EUR | E99: =IFERROR(IF(ÚverNieJeSplatený*ÚverJeDobrý,MesačnáSplátka,0), 0) -> 108.53 EUR | F99: =IFERROR(IF(ÚverNieJeSplatený*ÚverJeDobrý,Istina,0), 0) -> 91.22 EUR | G99: =IFERROR(IF(ÚverNieJeSplatený*ÚverJeDobrý,SumaÚrokov,0), 0) -> 17.31 EUR | H99: =IFERROR(IF(ÚverNieJeSplatený*ÚverJeDobrý,KonečnýZostatok,0), 0) -> 3,685.71 EUR
B100: =IFERROR(IF(ÚverNieJeSplatený*ÚverJeDobrý,ČísloPlatby,""), "") -> 84 | C100: =IFERROR(IF(ÚverNieJeSplatený*ÚverJeDobrý,DátumPlatby,PočiatočnýDátumÚveru), PočiatočnýDátumÚveru) -> 2026-07-17 | D100: =IFERROR(IF(ÚverNieJeSplatený*ÚverJeDobrý,HodnotaÚveru,""), "") -> 3,685.71 EUR | E100: =IFERROR(IF(ÚverNieJeSplatený*ÚverJeDobrý,MesačnáSplátka,0), 0) -> 108.53 EUR | F100: =IFERROR(IF(ÚverNieJeSplatený*ÚverJeDobrý,Istina,0), 0) -> 91.63 EUR | G100: =IFERROR(IF(ÚverNieJeSplatený*ÚverJeDobrý,SumaÚrokov,0), 0) -> 16.89 EUR | H100: =IFERROR(IF(ÚverNieJeSplatený*ÚverJeDobrý,KonečnýZostatok,0), 0) -> 3,594.07 EUR
B101: =IFERROR(IF(ÚverNieJeSplatený*ÚverJeDobrý,ČísloPlatby,""), "") -> 85 | C101: =IFERROR(IF(ÚverNieJeSplatený*ÚverJeDobrý,DátumPlatby,PočiatočnýDátumÚveru), PočiatočnýDátumÚveru) -> 2026-08-17 | D101: =IFERROR(IF(ÚverNieJeSplatený*ÚverJeDobrý,HodnotaÚveru,""), "") -> 3,594.07 EUR | E101: =IFERROR(IF(ÚverNieJeSplatený*ÚverJeDobrý,MesačnáSplátka,0), 0) -> 108.53 EUR | F101: =IFERROR(IF(ÚverNieJeSplatený*ÚverJeDobrý,Istina,0), 0) -> 92.05 EUR | G101: =IFERROR(IF(ÚverNieJeSplatený*ÚverJeDobrý,SumaÚrokov,0), 0) -> 16.47 EUR | H101: =IFERROR(IF(ÚverNieJeSplatený*ÚverJeDobrý,KonečnýZostatok,0), 0) -> 3,502.02 EUR
B102: =IFERROR(IF(ÚverNieJeSplatený*ÚverJeDobrý,ČísloPlatby,""), "") -> 86 | C102: =IFERROR(IF(ÚverNieJeSplatený*ÚverJeDobrý,DátumPlatby,PočiatočnýDátumÚveru), PočiatočnýDátumÚveru) -> 2026-09-17 | D102: =IFERROR(IF(ÚverNieJeSplatený*ÚverJeDobrý,HodnotaÚveru,""), "") -> 3,502.02 EUR | E102: =IFERROR(IF(ÚverNieJeSplatený*ÚverJeDobrý,MesačnáSplátka,0), 0) -> 108.53 EUR | F102: =IFERROR(IF(ÚverNieJeSplatený*ÚverJeDobrý,Istina,0), 0) -> 92.48 EUR | G102: =IFERROR(IF(ÚverNieJeSplatený*ÚverJeDobrý,SumaÚrokov,0), 0) -> 16.05 EUR | H102: =IFERROR(IF(ÚverNieJeSplatený*ÚverJeDobrý,KonečnýZostatok,0), 0) -> 3,409.54 EUR
B103: =IFERROR(IF(ÚverNieJeSplatený*ÚverJeDobrý,ČísloPlatby,""), "") -> 87 | C103: =IFERROR(IF(ÚverNieJeSplatený*ÚverJeDobrý,DátumPlatby,PočiatočnýDátumÚveru), PočiatočnýDátumÚveru) -> 2026-10-17 | D103: =IFERROR(IF(ÚverNieJeSplatený*ÚverJeDobrý,HodnotaÚveru,""), "") -> 3,409.54 EUR | E103: =IFERROR(IF(ÚverNieJeSplatený*ÚverJeDobrý,MesačnáSplátka,0), 0) -> 108.53 EUR | F103: =IFERROR(IF(ÚverNieJeSplatený*ÚverJeDobrý,Istina,0), 0) -> 92.90 EUR | G103: =IFERROR(IF(ÚverNieJeSplatený*ÚverJeDobrý,SumaÚrokov,0), 0) -> 15.63 EUR | H103: =IFERROR(IF(ÚverNieJeSplatený*ÚverJeDobrý,KonečnýZostatok,0), 0) -> 3,316.65 EUR
B104: =IFERROR(IF(ÚverNieJeSplatený*ÚverJeDobrý,ČísloPlatby,""), "") -> 88 | C104: =IFERROR(IF(ÚverNieJeSplatený*ÚverJeDobrý,DátumPlatby,PočiatočnýDátumÚveru), PočiatočnýDátumÚveru) -> 2026-11-17 | D104: =IFERROR(IF(ÚverNieJeSplatený*ÚverJeDobrý,HodnotaÚveru,""), "") -> 3,316.65 EUR | E104: =IFERROR(IF(ÚverNieJeSplatený*ÚverJeDobrý,MesačnáSplátka,0), 0) -> 108.53 EUR | F104: =IFERROR(IF(ÚverNieJeSplatený*ÚverJeDobrý,Istina,0), 0) -> 93.32 EUR | G104: =IFERROR(IF(ÚverNieJeSplatený*ÚverJeDobrý,SumaÚrokov,0), 0) -> 15.20 EUR | H104: =IFERROR(IF(ÚverNieJeSplatený*ÚverJeDobrý,KonečnýZostatok,0), 0) -> 3,223.32 EUR
B105: =IFERROR(IF(ÚverNieJeSplatený*ÚverJeDobrý,ČísloPlatby,""), "") -> 89 | C105: =IFERROR(IF(ÚverNieJeSplatený*ÚverJeDobrý,DátumPlatby,PočiatočnýDátumÚveru), PočiatočnýDátumÚveru) -> 2026-12-17 | D105: =IFERROR(IF(ÚverNieJeSplatený*ÚverJeDobrý,HodnotaÚveru,""), "") -> 3,223.32 EUR | E105: =IFERROR(IF(ÚverNieJeSplatený*ÚverJeDobrý,MesačnáSplátka,0), 0) -> 108.53 EUR | F105: =IFERROR(IF(ÚverNieJeSplatený*ÚverJeDobrý,Istina,0), 0) -> 93.75 EUR | G105: =IFERROR(IF(ÚverNieJeSplatený*ÚverJeDobrý,SumaÚrokov,0), 0) -> 14.77 EUR | H105: =IFERROR(IF(ÚverNieJeSplatený*ÚverJeDobrý,KonečnýZostatok,0), 0) -> 3,129.57 EUR
B106: =IFERROR(IF(ÚverNieJeSplatený*ÚverJeDobrý,ČísloPlatby,""), "") -> 90 | C106: =IFERROR(IF(ÚverNieJeSplatený*ÚverJeDobrý,DátumPlatby,PočiatočnýDátumÚveru), PočiatočnýDátumÚveru) -> 2027-01-17 | D106: =IFERROR(IF(ÚverNieJeSplatený*ÚverJeDobrý,HodnotaÚveru,""), "") -> 3,129.57 EUR | E106: =IFERROR(IF(ÚverNieJeSplatený*ÚverJeDobrý,MesačnáSplátka,0), 0) -> 108.53 EUR | F106: =IFERROR(IF(ÚverNieJeSplatený*ÚverJeDobrý,Istina,0), 0) -> 94.18 EUR | G106: =IFERROR(IF(ÚverNieJeSplatený*ÚverJeDobrý,SumaÚrokov,0), 0) -> 14.34 EUR | H106: =IFERROR(IF(ÚverNieJeSplatený*ÚverJeDobrý,KonečnýZostatok,0), 0) -> 3,035.38 EUR
B107: =IFERROR(IF(ÚverNieJeSplatený*ÚverJeDobrý,ČísloPlatby,""), "") -> 91 | C107: =IFERROR(IF(ÚverNieJeSplatený*ÚverJeDobrý,DátumPlatby,PočiatočnýDátumÚveru), PočiatočnýDátumÚveru) -> 2027-02-17 | D107: =IFERROR(IF(ÚverNieJeSplatený*ÚverJeDobrý,HodnotaÚveru,""), "") -> 3,035.38 EUR | E107: =IFERROR(IF(ÚverNieJeSplatený*ÚverJeDobrý,MesačnáSplátka,0), 0) -> 108.53 EUR | F107: =IFERROR(IF(ÚverNieJeSplatený*ÚverJeDobrý,Istina,0), 0) -> 94.61 EUR | G107: =IFERROR(IF(ÚverNieJeSplatený*ÚverJeDobrý,SumaÚrokov,0), 0) -> 13.91 EUR | H107: =IFERROR(IF(ÚverNieJeSplatený*ÚverJeDobrý,KonečnýZostatok,0), 0) -> 2,940.77 EUR
B108: =IFERROR(IF(ÚverNieJeSplatený*ÚverJeDobrý,ČísloPlatby,""), "") -> 92 | C108: =IFERROR(IF(ÚverNieJeSplatený*ÚverJeDobrý,DátumPlatby,PočiatočnýDátumÚveru), PočiatočnýDátumÚveru) -> 2027-03-17 | D108: =IFERROR(IF(ÚverNieJeSplatený*ÚverJeDobrý,HodnotaÚveru,""), "") -> 2,940.77 EUR | E108: =IFERROR(IF(ÚverNieJeSplatený*ÚverJeDobrý,MesačnáSplátka,0), 0) -> 108.53 EUR | F108: =IFERROR(IF(ÚverNieJeSplatený*ÚverJeDobrý,Istina,0), 0) -> 95.05 EUR | G108: =IFERROR(IF(ÚverNieJeSplatený*ÚverJeDobrý,SumaÚrokov,0), 0) -> 13.48 EUR | H108: =IFERROR(IF(ÚverNieJeSplatený*ÚverJeDobrý,KonečnýZostatok,0), 0) -> 2,845.72 EUR
B109: =IFERROR(IF(ÚverNieJeSplatený*ÚverJeDobrý,ČísloPlatby,""), "") -> 93 | C109: =IFERROR(IF(ÚverNieJeSplatený*ÚverJeDobrý,DátumPlatby,PočiatočnýDátumÚveru), PočiatočnýDátumÚveru) -> 2027-04-17 | D109: =IFERROR(IF(ÚverNieJeSplatený*ÚverJeDobrý,HodnotaÚveru,""), "") -> 2,845.72 EUR | E109: =IFERROR(IF(ÚverNieJeSplatený*ÚverJeDobrý,MesačnáSplátka,0), 0) -> 108.53 EUR | F109: =IFERROR(IF(ÚverNieJeSplatený*ÚverJeDobrý,Istina,0), 0) -> 95.48 EUR | G109: =IFERROR(IF(ÚverNieJeSplatený*ÚverJeDobrý,SumaÚrokov,0), 0) -> 13.04 EUR | H109: =IFERROR(IF(ÚverNieJeSplatený*ÚverJeDobrý,KonečnýZostatok,0), 0) -> 2,750.24 EUR
B110: =IFERROR(IF(ÚverNieJeSplatený*ÚverJeDobrý,ČísloPlatby,""), "") -> 94 | C110: =IFERROR(IF(ÚverNieJeSplatený*ÚverJeDobrý,DátumPlatby,PočiatočnýDátumÚveru), PočiatočnýDátumÚveru) -> 2027-05-17 | D110: =IFERROR(IF(ÚverNieJeSplatený*ÚverJeDobrý,HodnotaÚveru,""), "") -> 2,750.24 EUR | E110: =IFERROR(IF(ÚverNieJeSplatený*ÚverJeDobrý,MesačnáSplátka,0), 0) -> 108.53 EUR | F110: =IFERROR(IF(ÚverNieJeSplatený*ÚverJeDobrý,Istina,0), 0) -> 95.92 EUR | G110: =IFERROR(IF(ÚverNieJeSplatený*ÚverJeDobrý,SumaÚrokov,0), 0) -> 12.61 EUR | H110: =IFERROR(IF(ÚverNieJeSplatený*ÚverJeDobrý,KonečnýZostatok,0), 0) -> 2,654.32 EUR
B111: =IFERROR(IF(ÚverNieJeSplatený*ÚverJeDobrý,ČísloPlatby,""), "") -> 95 | C111: =IFERROR(IF(ÚverNieJeSplatený*ÚverJeDobrý,DátumPlatby,PočiatočnýDátumÚveru), PočiatočnýDátumÚveru) -> 2027-06-17 | D111: =IFERROR(IF(ÚverNieJeSplatený*ÚverJeDobrý,HodnotaÚveru,""), "") -> 2,654.32 EUR | E111: =IFERROR(IF(ÚverNieJeSplatený*ÚverJeDobrý,MesačnáSplátka,0), 0) -> 108.53 EUR | F111: =IFERROR(IF(ÚverNieJeSplatený*ÚverJeDobrý,Istina,0), 0) -> 96.36 EUR | G111: =IFERROR(IF(ÚverNieJeSplatený*ÚverJeDobrý,SumaÚrokov,0), 0) -> 12.17 EUR | H111: =IFERROR(IF(ÚverNieJeSplatený*ÚverJeDobrý,KonečnýZostatok,0), 0) -> 2,557.96 EUR
B112: =IFERROR(IF(ÚverNieJeSplatený*ÚverJeDobrý,ČísloPlatby,""), "") -> 96 | C112: =IFERROR(IF(ÚverNieJeSplatený*ÚverJeDobrý,DátumPlatby,PočiatočnýDátumÚveru), PočiatočnýDátumÚveru) -> 2027-07-17 | D112: =IFERROR(IF(ÚverNieJeSplatený*ÚverJeDobrý,HodnotaÚveru,""), "") -> 2,557.96 EUR | E112: =IFERROR(IF(ÚverNieJeSplatený*ÚverJeDobrý,MesačnáSplátka,0), 0) -> 108.53 EUR | F112: =IFERROR(IF(ÚverNieJeSplatený*ÚverJeDobrý,Istina,0), 0) -> 96.80 EUR | G112: =IFERROR(IF(ÚverNieJeSplatený*ÚverJeDobrý,SumaÚrokov,0), 0) -> 11.72 EUR | H112: =IFERROR(IF(ÚverNieJeSplatený*ÚverJeDobrý,KonečnýZostatok,0), 0) -> 2,461.16 EUR
B113: =IFERROR(IF(ÚverNieJeSplatený*ÚverJeDobrý,ČísloPlatby,""), "") -> 97 | C113: =IFERROR(IF(ÚverNieJeSplatený*ÚverJeDobrý,DátumPlatby,PočiatočnýDátumÚveru), PočiatočnýDátumÚveru) -> 2027-08-17 | D113: =IFERROR(IF(ÚverNieJeSplatený*ÚverJeDobrý,HodnotaÚveru,""), "") -> 2,461.16 EUR | E113: =IFERROR(IF(ÚverNieJeSplatený*ÚverJeDobrý,MesačnáSplátka,0), 0) -> 108.53 EUR | F113: =IFERROR(IF(ÚverNieJeSplatený*ÚverJeDobrý,Istina,0), 0) -> 97.25 EUR | G113: =IFERROR(IF(ÚverNieJeSplatený*ÚverJeDobrý,SumaÚrokov,0), 0) -> 11.28 EUR | H113: =IFERROR(IF(ÚverNieJeSplatený*ÚverJeDobrý,KonečnýZostatok,0), 0) -> 2,363.91 EUR
B114: =IFERROR(IF(ÚverNieJeSplatený*ÚverJeDobrý,ČísloPlatby,""), "") -> 98 | C114: =IFERROR(IF(ÚverNieJeSplatený*ÚverJeDobrý,DátumPlatby,PočiatočnýDátumÚveru), PočiatočnýDátumÚveru) -> 2027-09-17 | D114: =IFERROR(IF(ÚverNieJeSplatený*ÚverJeDobrý,HodnotaÚveru,""), "") -> 2,363.91 EUR | E114: =IFERROR(IF(ÚverNieJeSplatený*ÚverJeDobrý,MesačnáSplátka,0), 0) -> 108.53 EUR | F114: =IFERROR(IF(ÚverNieJeSplatený*ÚverJeDobrý,Istina,0), 0) -> 97.69 EUR | G114: =IFERROR(IF(ÚverNieJeSplatený*ÚverJeDobrý,SumaÚrokov,0), 0) -> 10.83 EUR | H114: =IFERROR(IF(ÚverNieJeSplatený*ÚverJeDobrý,KonečnýZostatok,0), 0) -> 2,266.22 EUR
B115: =IFERROR(IF(ÚverNieJeSplatený*ÚverJeDobrý,ČísloPlatby,""), "") -> 99 | C115: =IFERROR(IF(ÚverNieJeSplatený*ÚverJeDobrý,DátumPlatby,PočiatočnýDátumÚveru), PočiatočnýDátumÚveru) -> 2027-10-17 | D115: =IFERROR(IF(ÚverNieJeSplatený*ÚverJeDobrý,HodnotaÚveru,""), "") -> 2,266.22 EUR | E115: =IFERROR(IF(ÚverNieJeSplatený*ÚverJeDobrý,MesačnáSplátka,0), 0) -> 108.53 EUR | F115: =IFERROR(IF(ÚverNieJeSplatený*ÚverJeDobrý,Istina,0), 0) -> 98.14 EUR | G115: =IFERROR(IF(ÚverNieJeSplatený*ÚverJeDobrý,SumaÚrokov,0), 0) -> 10.39 EUR | H115: =IFERROR(IF(ÚverNieJeSplatený*ÚverJeDobrý,KonečnýZostatok,0), 0) -> 2,168.08 EUR
B116: =IFERROR(IF(ÚverNieJeSplatený*ÚverJeDobrý,ČísloPlatby,""), "") -> 100 | C116: =IFERROR(IF(ÚverNieJeSplatený*ÚverJeDobrý,DátumPlatby,PočiatočnýDátumÚveru), PočiatočnýDátumÚveru) -> 2027-11-17 | D116: =IFERROR(IF(ÚverNieJeSplatený*ÚverJeDobrý,HodnotaÚveru,""), "") -> 2,168.08 EUR | E116: =IFERROR(IF(ÚverNieJeSplatený*ÚverJeDobrý,MesačnáSplátka,0), 0) -> 108.53 EUR | F116: =IFERROR(IF(ÚverNieJeSplatený*ÚverJeDobrý,Istina,0), 0) -> 98.59 EUR | G116: =IFERROR(IF(ÚverNieJeSplatený*ÚverJeDobrý,SumaÚrokov,0), 0) -> 9.94 EUR | H116: =IFERROR(IF(ÚverNieJeSplatený*ÚverJeDobrý,KonečnýZostatok,0), 0) -> 2,069.49 EUR
B117: =IFERROR(IF(ÚverNieJeSplatený*ÚverJeDobrý,ČísloPlatby,""), "") -> 101 | C117: =IFERROR(IF(ÚverNieJeSplatený*ÚverJeDobrý,DátumPlatby,PočiatočnýDátumÚveru), PočiatočnýDátumÚveru) -> 2027-12-17 | D117: =IFERROR(IF(ÚverNieJeSplatený*ÚverJeDobrý,HodnotaÚveru,""), "") -> 2,069.49 EUR | E117: =IFERROR(IF(ÚverNieJeSplatený*ÚverJeDobrý,MesačnáSplátka,0), 0) -> 108.53 EUR | F117: =IFERROR(IF(ÚverNieJeSplatený*ÚverJeDobrý,Istina,0), 0) -> 99.04 EUR | G117: =IFERROR(IF(ÚverNieJeSplatený*ÚverJeDobrý,SumaÚrokov,0), 0) -> 9.49 EUR | H117: =IFERROR(IF(ÚverNieJeSplatený*ÚverJeDobrý,KonečnýZostatok,0), 0) -> 1,970.45 EUR
B118: =IFERROR(IF(ÚverNieJeSplatený*ÚverJeDobrý,ČísloPlatby,""), "") -> 102 | C118: =IFERROR(IF(ÚverNieJeSplatený*ÚverJeDobrý,DátumPlatby,PočiatočnýDátumÚveru), PočiatočnýDátumÚveru) -> 2028-01-17 | D118: =IFERROR(IF(ÚverNieJeSplatený*ÚverJeDobrý,HodnotaÚveru,""), "") -> 1,970.45 EUR | E118: =IFERROR(IF(ÚverNieJeSplatený*ÚverJeDobrý,MesačnáSplátka,0), 0) -> 108.53 EUR | F118: =IFERROR(IF(ÚverNieJeSplatený*ÚverJeDobrý,Istina,0), 0) -> 99.50 EUR | G118: =IFERROR(IF(ÚverNieJeSplatený*ÚverJeDobrý,SumaÚrokov,0), 0) -> 9.03 EUR | H118: =IFERROR(IF(ÚverNieJeSplatený*ÚverJeDobrý,KonečnýZostatok,0), 0) -> 1,870.95 EUR
B119: =IFERROR(IF(ÚverNieJeSplatený*ÚverJeDobrý,ČísloPlatby,""), "") -> 103 | C119: =IFERROR(IF(ÚverNieJeSplatený*ÚverJeDobrý,DátumPlatby,PočiatočnýDátumÚveru), PočiatočnýDátumÚveru) -> 2028-02-17 | D119: =IFERROR(IF(ÚverNieJeSplatený*ÚverJeDobrý,HodnotaÚveru,""), "") -> 1,870.95 EUR | E119: =IFERROR(IF(ÚverNieJeSplatený*ÚverJeDobrý,MesačnáSplátka,0), 0) -> 108.53 EUR | F119: =IFERROR(IF(ÚverNieJeSplatený*ÚverJeDobrý,Istina,0), 0) -> 99.95 EUR | G119: =IFERROR(IF(ÚverNieJeSplatený*ÚverJeDobrý,SumaÚrokov,0), 0) -> 8.58 EUR | H119: =IFERROR(IF(ÚverNieJeSplatený*ÚverJeDobrý,KonečnýZostatok,0), 0) -> 1,771.00 EUR
B120: =IFERROR(IF(ÚverNieJeSplatený*ÚverJeDobrý,ČísloPlatby,""), "") -> 104 | C120: =IFERROR(IF(ÚverNieJeSplatený*ÚverJeDobrý,DátumPlatby,PočiatočnýDátumÚveru), PočiatočnýDátumÚveru) -> 2028-03-17 | D120: =IFERROR(IF(ÚverNieJeSplatený*ÚverJeDobrý,HodnotaÚveru,""), "") -> 1,771.00 EUR | E120: =IFERROR(IF(ÚverNieJeSplatený*ÚverJeDobrý,MesačnáSplátka,0), 0) -> 108.53 EUR | F120: =IFERROR(IF(ÚverNieJeSplatený*ÚverJeDobrý,Istina,0), 0) -> 100.41 EUR | G120: =IFERROR(IF(ÚverNieJeSplatený*ÚverJeDobrý,SumaÚrokov,0), 0) -> 8.12 EUR | H120: =IFERROR(IF(ÚverNieJeSplatený*ÚverJeDobrý,KonečnýZostatok,0), 0) -> 1,670.59 EUR
B121: =IFERROR(IF(ÚverNieJeSplatený*ÚverJeDobrý,ČísloPlatby,""), "") -> 105 | C121: =IFERROR(IF(ÚverNieJeSplatený*ÚverJeDobrý,DátumPlatby,PočiatočnýDátumÚveru), PočiatočnýDátumÚveru) -> 2028-04-17 | D121: =IFERROR(IF(ÚverNieJeSplatený*ÚverJeDobrý,HodnotaÚveru,""), "") -> 1,670.59 EUR | E121: =IFERROR(IF(ÚverNieJeSplatený*ÚverJeDobrý,MesačnáSplátka,0), 0) -> 108.53 EUR | F121: =IFERROR(IF(ÚverNieJeSplatený*ÚverJeDobrý,Istina,0), 0) -> 100.87 EUR | G121: =IFERROR(IF(ÚverNieJeSplatený*ÚverJeDobrý,SumaÚrokov,0), 0) -> 7.66 EUR | H121: =IFERROR(IF(ÚverNieJeSplatený*ÚverJeDobrý,KonečnýZostatok,0), 0) -> 1,569.72 EUR
B122: =IFERROR(IF(ÚverNieJeSplatený*ÚverJeDobrý,ČísloPlatby,""), "") -> 106 | C122: =IFERROR(IF(ÚverNieJeSplatený*ÚverJeDobrý,DátumPlatby,PočiatočnýDátumÚveru), PočiatočnýDátumÚveru) -> 2028-05-17 | D122: =IFERROR(IF(ÚverNieJeSplatený*ÚverJeDobrý,HodnotaÚveru,""), "") -> 1,569.72 EUR | E122: =IFERROR(IF(ÚverNieJeSplatený*ÚverJeDobrý,MesačnáSplátka,0), 0) -> 108.53 EUR | F122: =IFERROR(IF(ÚverNieJeSplatený*ÚverJeDobrý,Istina,0), 0) -> 101.33 EUR | G122: =IFERROR(IF(ÚverNieJeSplatený*ÚverJeDobrý,SumaÚrokov,0), 0) -> 7.19 EUR | H122: =IFERROR(IF(ÚverNieJeSplatený*ÚverJeDobrý,KonečnýZostatok,0), 0) -> 1,468.39 EUR
B123: =IFERROR(IF(ÚverNieJeSplatený*ÚverJeDobrý,ČísloPlatby,""), "") -> 107 | C123: =IFERROR(IF(ÚverNieJeSplatený*ÚverJeDobrý,DátumPlatby,PočiatočnýDátumÚveru), PočiatočnýDátumÚveru) -> 2028-06-17 | D123: =IFERROR(IF(ÚverNieJeSplatený*ÚverJeDobrý,HodnotaÚveru,""), "") -> 1,468.39 EUR | E123: =IFERROR(IF(ÚverNieJeSplatený*ÚverJeDobrý,MesačnáSplátka,0), 0) -> 108.53 EUR | F123: =IFERROR(IF(ÚverNieJeSplatený*ÚverJeDobrý,Istina,0), 0) -> 101.80 EUR | G123: =IFERROR(IF(ÚverNieJeSplatený*ÚverJeDobrý,SumaÚrokov,0), 0) -> 6.73 EUR | H123: =IFERROR(IF(ÚverNieJeSplatený*ÚverJeDobrý,KonečnýZostatok,0), 0) -> 1,366.60 EUR
B124: =IFERROR(IF(ÚverNieJeSplatený*ÚverJeDobrý,ČísloPlatby,""), "") -> 108 | C124: =IFERROR(IF(ÚverNieJeSplatený*ÚverJeDobrý,DátumPlatby,PočiatočnýDátumÚveru), PočiatočnýDátumÚveru) -> 2028-07-17 | D124: =IFERROR(IF(ÚverNieJeSplatený*ÚverJeDobrý,HodnotaÚveru,""), "") -> 1,366.60 EUR | E124: =IFERROR(IF(ÚverNieJeSplatený*ÚverJeDobrý,MesačnáSplátka,0), 0) -> 108.53 EUR | F124: =IFERROR(IF(ÚverNieJeSplatený*ÚverJeDobrý,Istina,0), 0) -> 102.26 EUR | G124: =IFERROR(IF(ÚverNieJeSplatený*ÚverJeDobrý,SumaÚrokov,0), 0) -> 6.26 EUR | H124: =IFERROR(IF(ÚverNieJeSplatený*ÚverJeDobrý,KonečnýZostatok,0), 0) -> 1,264.33 EUR
B125: =IFERROR(IF(ÚverNieJeSplatený*ÚverJeDobrý,ČísloPlatby,""), "") -> 109 | C125: =IFERROR(IF(ÚverNieJeSplatený*ÚverJeDobrý,DátumPlatby,PočiatočnýDátumÚveru), PočiatočnýDátumÚveru) -> 2028-08-17 | D125: =IFERROR(IF(ÚverNieJeSplatený*ÚverJeDobrý,HodnotaÚveru,""), "") -> 1,264.33 EUR | E125: =IFERROR(IF(ÚverNieJeSplatený*ÚverJeDobrý,MesačnáSplátka,0), 0) -> 108.53 EUR | F125: =IFERROR(IF(ÚverNieJeSplatený*ÚverJeDobrý,Istina,0), 0) -> 102.73 EUR | G125: =IFERROR(IF(ÚverNieJeSplatený*ÚverJeDobrý,SumaÚrokov,0), 0) -> 5.79 EUR | H125: =IFERROR(IF(ÚverNieJeSplatený*ÚverJeDobrý,KonečnýZostatok,0), 0) -> 1,161.60 EUR
B126: =IFERROR(IF(ÚverNieJeSplatený*ÚverJeDobrý,ČísloPlatby,""), "") -> 110 | C126: =IFERROR(IF(ÚverNieJeSplatený*ÚverJeDobrý,DátumPlatby,PočiatočnýDátumÚveru), PočiatočnýDátumÚveru) -> 2028-09-17 | D126: =IFERROR(IF(ÚverNieJeSplatený*ÚverJeDobrý,HodnotaÚveru,""), "") -> 1,161.60 EUR | E126: =IFERROR(IF(ÚverNieJeSplatený*ÚverJeDobrý,MesačnáSplátka,0), 0) -> 108.53 EUR | F126: =IFERROR(IF(ÚverNieJeSplatený*ÚverJeDobrý,Istina,0), 0) -> 103.20 EUR | G126: =IFERROR(IF(ÚverNieJeSplatený*ÚverJeDobrý,SumaÚrokov,0), 0) -> 5.32 EUR | H126: =IFERROR(IF(ÚverNieJeSplatený*ÚverJeDobrý,KonečnýZostatok,0), 0) -> 1,058.40 EUR
B127: =IFERROR(IF(ÚverNieJeSplatený*ÚverJeDobrý,ČísloPlatby,""), "") -> 111 | C127: =IFERROR(IF(ÚverNieJeSplatený*ÚverJeDobrý,DátumPlatby,PočiatočnýDátumÚveru), PočiatočnýDátumÚveru) -> 2028-10-17 | D127: =IFERROR(IF(ÚverNieJeSplatený*ÚverJeDobrý,HodnotaÚveru,""), "") -> 1,058.40 EUR | E127: =IFERROR(IF(ÚverNieJeSplatený*ÚverJeDobrý,MesačnáSplátka,0), 0) -> 108.53 EUR | F127: =IFERROR(IF(ÚverNieJeSplatený*ÚverJeDobrý,Istina,0), 0) -> 103.68 EUR | G127: =IFERROR(IF(ÚverNieJeSplatený*ÚverJeDobrý,SumaÚrokov,0), 0) -> 4.85 EUR | H127: =IFERROR(IF(ÚverNieJeSplatený*ÚverJeDobrý,KonečnýZostatok,0), 0) -> 954.72 EUR
B128: =IFERROR(IF(ÚverNieJeSplatený*ÚverJeDobrý,ČísloPlatby,""), "") -> 112 | C128: =IFERROR(IF(ÚverNieJeSplatený*ÚverJeDobrý,DátumPlatby,PočiatočnýDátumÚveru), PočiatočnýDátumÚveru) -> 2028-11-17 | D128: =IFERROR(IF(ÚverNieJeSplatený*ÚverJeDobrý,HodnotaÚveru,""), "") -> 954.72 EUR | E128: =IFERROR(IF(ÚverNieJeSplatený*ÚverJeDobrý,MesačnáSplátka,0), 0) -> 108.53 EUR | F128: =IFERROR(IF(ÚverNieJeSplatený*ÚverJeDobrý,Istina,0), 0) -> 104.15 EUR | G128: =IFERROR(IF(ÚverNieJeSplatený*ÚverJeDobrý,SumaÚrokov,0), 0) -> 4.38 EUR | H128: =IFERROR(IF(ÚverNieJeSplatený*ÚverJeDobrý,KonečnýZostatok,0), 0) -> 850.57 EUR
B129: =IFERROR(IF(ÚverNieJeSplatený*ÚverJeDobrý,ČísloPlatby,""), "") -> 113 | C129: =IFERROR(IF(ÚverNieJeSplatený*ÚverJeDobrý,DátumPlatby,PočiatočnýDátumÚveru), PočiatočnýDátumÚveru) -> 2028-12-17 | D129: =IFERROR(IF(ÚverNieJeSplatený*ÚverJeDobrý,HodnotaÚveru,""), "") -> 850.57 EUR | E129: =IFERROR(IF(ÚverNieJeSplatený*ÚverJeDobrý,MesačnáSplátka,0), 0) -> 108.53 EUR | F129: =IFERROR(IF(ÚverNieJeSplatený*ÚverJeDobrý,Istina,0), 0) -> 104.63 EUR | G129: =IFERROR(IF(ÚverNieJeSplatený*ÚverJeDobrý,SumaÚrokov,0), 0) -> 3.90 EUR | H129: =IFERROR(IF(ÚverNieJeSplatený*ÚverJeDobrý,KonečnýZostatok,0), 0) -> 745.95 EUR
B130: =IFERROR(IF(ÚverNieJeSplatený*ÚverJeDobrý,ČísloPlatby,""), "") -> 114 | C130: =IFERROR(IF(ÚverNieJeSplatený*ÚverJeDobrý,DátumPlatby,PočiatočnýDátumÚveru), PočiatočnýDátumÚveru) -> 2029-01-17 | D130: =IFERROR(IF(ÚverNieJeSplatený*ÚverJeDobrý,HodnotaÚveru,""), "") -> 745.95 EUR | E130: =IFERROR(IF(ÚverNieJeSplatený*ÚverJeDobrý,MesačnáSplátka,0), 0) -> 108.53 EUR | F130: =IFERROR(IF(ÚverNieJeSplatený*ÚverJeDobrý,Istina,0), 0) -> 105.11 EUR | G130: =IFERROR(IF(ÚverNieJeSplatený*ÚverJeDobrý,SumaÚrokov,0), 0) -> 3.42 EUR | H130: =IFERROR(IF(ÚverNieJeSplatený*ÚverJeDobrý,KonečnýZostatok,0), 0) -> 640.84 EUR
B131: =IFERROR(IF(ÚverNieJeSplatený*ÚverJeDobrý,ČísloPlatby,""), "") -> 115 | C131: =IFERROR(IF(ÚverNieJeSplatený*ÚverJeDobrý,DátumPlatby,PočiatočnýDátumÚveru), PočiatočnýDátumÚveru) -> 2029-02-17 | D131: =IFERROR(IF(ÚverNieJeSplatený*ÚverJeDobrý,HodnotaÚveru,""), "") -> 640.84 EUR | E131: =IFERROR(IF(ÚverNieJeSplatený*ÚverJeDobrý,MesačnáSplátka,0), 0) -> 108.53 EUR | F131: =IFERROR(IF(ÚverNieJeSplatený*ÚverJeDobrý,Istina,0), 0) -> 105.59 EUR | G131: =IFERROR(IF(ÚverNieJeSplatený*ÚverJeDobrý,SumaÚrokov,0), 0) -> 2.94 EUR | H131: =IFERROR(IF(ÚverNieJeSplatený*ÚverJeDobrý,KonečnýZostatok,0), 0) -> 535.25 EUR
B132: =IFERROR(IF(ÚverNieJeSplatený*ÚverJeDobrý,ČísloPlatby,""), "") -> 116 | C132: =IFERROR(IF(ÚverNieJeSplatený*ÚverJeDobrý,DátumPlatby,PočiatočnýDátumÚveru), PočiatočnýDátumÚveru) -> 2029-03-17 | D132: =IFERROR(IF(ÚverNieJeSplatený*ÚverJeDobrý,HodnotaÚveru,""), "") -> 535.25 EUR | E132: =IFERROR(IF(ÚverNieJeSplatený*ÚverJeDobrý,MesačnáSplátka,0), 0) -> 108.53 EUR | F132: =IFERROR(IF(ÚverNieJeSplatený*ÚverJeDobrý,Istina,0), 0) -> 106.07 EUR | G132: =IFERROR(IF(ÚverNieJeSplatený*ÚverJeDobrý,SumaÚrokov,0), 0) -> 2.45 EUR | H132: =IFERROR(IF(ÚverNieJeSplatený*ÚverJeDobrý,KonečnýZostatok,0), 0) -> 429.18 EUR
B133: =IFERROR(IF(ÚverNieJeSplatený*ÚverJeDobrý,ČísloPlatby,""), "") -> 117 | C133: =IFERROR(IF(ÚverNieJeSplatený*ÚverJeDobrý,DátumPlatby,PočiatočnýDátumÚveru), PočiatočnýDátumÚveru) -> 2029-04-17 | D133: =IFERROR(IF(ÚverNieJeSplatený*ÚverJeDobrý,HodnotaÚveru,""), "") -> 429.18 EUR | E133: =IFERROR(IF(ÚverNieJeSplatený*ÚverJeDobrý,MesačnáSplátka,0), 0) -> 108.53 EUR | F133: =IFERROR(IF(ÚverNieJeSplatený*ÚverJeDobrý,Istina,0), 0) -> 106.56 EUR | G133: =IFERROR(IF(ÚverNieJeSplatený*ÚverJeDobrý,SumaÚrokov,0), 0) -> 1.97 EUR | H133: =IFERROR(IF(ÚverNieJeSplatený*ÚverJeDobrý,KonečnýZostatok,0), 0) -> 322.62 EUR
B134: =IFERROR(IF(ÚverNieJeSplatený*ÚverJeDobrý,ČísloPlatby,""), "") -> 118 | C134: =IFERROR(IF(ÚverNieJeSplatený*ÚverJeDobrý,DátumPlatby,PočiatočnýDátumÚveru), PočiatočnýDátumÚveru) -> 2029-05-17 | D134: =IFERROR(IF(ÚverNieJeSplatený*ÚverJeDobrý,HodnotaÚveru,""), "") -> 322.62 EUR | E134: =IFERROR(IF(ÚverNieJeSplatený*ÚverJeDobrý,MesačnáSplátka,0), 0) -> 108.53 EUR | F134: =IFERROR(IF(ÚverNieJeSplatený*ÚverJeDobrý,Istina,0), 0) -> 107.05 EUR | G134: =IFERROR(IF(ÚverNieJeSplatený*ÚverJeDobrý,SumaÚrokov,0), 0) -> 1.48 EUR | H134: =IFERROR(IF(ÚverNieJeSplatený*ÚverJeDobrý,KonečnýZostatok,0), 0) -> 215.57 EUR
B135: =IFERROR(IF(ÚverNieJeSplatený*ÚverJeDobrý,ČísloPlatby,""), "") -> 119 | C135: =IFERROR(IF(ÚverNieJeSplatený*ÚverJeDobrý,DátumPlatby,PočiatočnýDátumÚveru), PočiatočnýDátumÚveru) -> 2029-06-17 | D135: =IFERROR(IF(ÚverNieJeSplatený*ÚverJeDobrý,HodnotaÚveru,""), "") -> 215.57 EUR | E135: =IFERROR(IF(ÚverNieJeSplatený*ÚverJeDobrý,MesačnáSplátka,0), 0) -> 108.53 EUR | F135: =IFERROR(IF(ÚverNieJeSplatený*ÚverJeDobrý,Istina,0), 0) -> 107.54 EUR | G135: =IFERROR(IF(ÚverNieJeSplatený*ÚverJeDobrý,SumaÚrokov,0), 0) -> 0.99 EUR | H135: =IFERROR(IF(ÚverNieJeSplatený*ÚverJeDobrý,KonečnýZostatok,0), 0) -> 108.03 EUR
B136: =IFERROR(IF(ÚverNieJeSplatený*ÚverJeDobrý,ČísloPlatby,""), "") -> 120 | C136: =IFERROR(IF(ÚverNieJeSplatený*ÚverJeDobrý,DátumPlatby,PočiatočnýDátumÚveru), PočiatočnýDátumÚveru) -> 2029-07-17 | D136: =IFERROR(IF(ÚverNieJeSplatený*ÚverJeDobrý,HodnotaÚveru,""), "") -> 108.03 EUR | E136: =IFERROR(IF(ÚverNieJeSplatený*ÚverJeDobrý,MesačnáSplátka,0), 0) -> 108.53 EUR | F136: =IFERROR(IF(ÚverNieJeSplatený*ÚverJeDobrý,Istina,0), 0) -> 108.03 EUR | G136: =IFERROR(IF(ÚverNieJeSplatený*ÚverJeDobrý,SumaÚrokov,0), 0) -> 0.50 EUR | H136: =IFERROR(IF(ÚverNieJeSplatený*ÚverJeDobrý,KonečnýZostatok,0), 0) -> -0.00 EUR
B137: =IFERROR(IF(ÚverNieJeSplatený*ÚverJeDobrý,ČísloPlatby,""), "") ->  | C137: =IFERROR(IF(ÚverNieJeSplatený*ÚverJeDobrý,DátumPlatby,PočiatočnýDátumÚveru), PočiatočnýDátumÚveru) -> 2019-07-17 | D137: =IFERROR(IF(ÚverNieJeSplatený*ÚverJeDobrý,HodnotaÚveru,""), "") ->  | E137: =IFERROR(IF(ÚverNieJeSplatený*ÚverJeDobrý,MesačnáSplátka,0), 0) -> 0.00 EUR | F137: =IFERROR(IF(ÚverNieJeSplatený*ÚverJeDobrý,Istina,0), 0) -> 0.00 EUR | G137: =IFERROR(IF(ÚverNieJeSplatený*ÚverJeDobrý,SumaÚrokov,0), 0) -> 0.00 EUR | H137: =IFERROR(IF(ÚverNieJeSplatený*ÚverJeDobrý,KonečnýZostatok,0), 0) -> 0.00 EUR
B138: =IFERROR(IF(ÚverNieJeSplatený*ÚverJeDobrý,ČísloPlatby,""), "") ->  | C138: =IFERROR(IF(ÚverNieJeSplatený*ÚverJeDobrý,DátumPlatby,PočiatočnýDátumÚveru), PočiatočnýDátumÚveru) -> 2019-07-17 | D138: =IFERROR(IF(ÚverNieJeSplatený*ÚverJeDobrý,HodnotaÚveru,""), "") ->  | E138: =IFERROR(IF(ÚverNieJeSplatený*ÚverJeDobrý,MesačnáSplátka,0), 0) -> 0.00 EUR | F138: =IFERROR(IF(ÚverNieJeSplatený*ÚverJeDobrý,Istina,0), 0) -> 0.00 EUR | G138: =IFERROR(IF(ÚverNieJeSplatený*ÚverJeDobrý,SumaÚrokov,0), 0) -> 0.00 EUR | H138: =IFERROR(IF(ÚverNieJeSplatený*ÚverJeDobrý,KonečnýZostatok,0), 0) -> 0.00 EUR
B139: =IFERROR(IF(ÚverNieJeSplatený*ÚverJeDobrý,ČísloPlatby,""), "") ->  | C139: =IFERROR(IF(ÚverNieJeSplatený*ÚverJeDobrý,DátumPlatby,PočiatočnýDátumÚveru), PočiatočnýDátumÚveru) -> 2019-07-17 | D139: =IFERROR(IF(ÚverNieJeSplatený*ÚverJeDobrý,HodnotaÚveru,""), "") ->  | E139: =IFERROR(IF(ÚverNieJeSplatený*ÚverJeDobrý,MesačnáSplátka,0), 0) -> 0.00 EUR | F139: =IFERROR(IF(ÚverNieJeSplatený*ÚverJeDobrý,Istina,0), 0) -> 0.00 EUR | G139: =IFERROR(IF(ÚverNieJeSplatený*ÚverJeDobrý,SumaÚrokov,0), 0) -> 0.00 EUR | H139: =IFERROR(IF(ÚverNieJeSplatený*ÚverJeDobrý,KonečnýZostatok,0), 0) -> 0.00 EUR
B140: =IFERROR(IF(ÚverNieJeSplatený*ÚverJeDobrý,ČísloPlatby,""), "") ->  | C140: =IFERROR(IF(ÚverNieJeSplatený*ÚverJeDobrý,DátumPlatby,PočiatočnýDátumÚveru), PočiatočnýDátumÚveru) -> 2019-07-17 | D140: =IFERROR(IF(ÚverNieJeSplatený*ÚverJeDobrý,HodnotaÚveru,""), "") ->  | E140: =IFERROR(IF(ÚverNieJeSplatený*ÚverJeDobrý,MesačnáSplátka,0), 0) -> 0.00 EUR | F140: =IFERROR(IF(ÚverNieJeSplatený*ÚverJeDobrý,Istina,0), 0) -> 0.00 EUR | G140: =IFERROR(IF(ÚverNieJeSplatený*ÚverJeDobrý,SumaÚrokov,0), 0) -> 0.00 EUR | H140: =IFERROR(IF(ÚverNieJeSplatený*ÚverJeDobrý,KonečnýZostatok,0), 0) -> 0.00 EUR
B141: =IFERROR(IF(ÚverNieJeSplatený*ÚverJeDobrý,ČísloPlatby,""), "") ->  | C141: =IFERROR(IF(ÚverNieJeSplatený*ÚverJeDobrý,DátumPlatby,PočiatočnýDátumÚveru), PočiatočnýDátumÚveru) -> 2019-07-17 | D141: =IFERROR(IF(ÚverNieJeSplatený*ÚverJeDobrý,HodnotaÚveru,""), "") ->  | E141: =IFERROR(IF(ÚverNieJeSplatený*ÚverJeDobrý,MesačnáSplátka,0), 0) -> 0.00 EUR | F141: =IFERROR(IF(ÚverNieJeSplatený*ÚverJeDobrý,Istina,0), 0) -> 0.00 EUR | G141: =IFERROR(IF(ÚverNieJeSplatený*ÚverJeDobrý,SumaÚrokov,0), 0) -> 0.00 EUR | H141: =IFERROR(IF(ÚverNieJeSplatený*ÚverJeDobrý,KonečnýZostatok,0), 0) -> 0.00 EUR
B142: =IFERROR(IF(ÚverNieJeSplatený*ÚverJeDobrý,ČísloPlatby,""), "") ->  | C142: =IFERROR(IF(ÚverNieJeSplatený*ÚverJeDobrý,DátumPlatby,PočiatočnýDátumÚveru), PočiatočnýDátumÚveru) -> 2019-07-17 | D142: =IFERROR(IF(ÚverNieJeSplatený*ÚverJeDobrý,HodnotaÚveru,""), "") ->  | E142: =IFERROR(IF(ÚverNieJeSplatený*ÚverJeDobrý,MesačnáSplátka,0), 0) -> 0.00 EUR | F142: =IFERROR(IF(ÚverNieJeSplatený*ÚverJeDobrý,Istina,0), 0) -> 0.00 EUR | G142: =IFERROR(IF(ÚverNieJeSplatený*ÚverJeDobrý,SumaÚrokov,0), 0) -> 0.00 EUR | H142: =IFERROR(IF(ÚverNieJeSplatený*ÚverJeDobrý,KonečnýZostatok,0), 0) -> 0.00 EUR
B143: =IFERROR(IF(ÚverNieJeSplatený*ÚverJeDobrý,ČísloPlatby,""), "") ->  | C143: =IFERROR(IF(ÚverNieJeSplatený*ÚverJeDobrý,DátumPlatby,PočiatočnýDátumÚveru), PočiatočnýDátumÚveru) -> 2019-07-17 | D143: =IFERROR(IF(ÚverNieJeSplatený*ÚverJeDobrý,HodnotaÚveru,""), "") ->  | E143: =IFERROR(IF(ÚverNieJeSplatený*ÚverJeDobrý,MesačnáSplátka,0), 0) -> 0.00 EUR | F143: =IFERROR(IF(ÚverNieJeSplatený*ÚverJeDobrý,Istina,0), 0) -> 0.00 EUR | G143: =IFERROR(IF(ÚverNieJeSplatený*ÚverJeDobrý,SumaÚrokov,0), 0) -> 0.00 EUR | H143: =IFERROR(IF(ÚverNieJeSplatený*ÚverJeDobrý,KonečnýZostatok,0), 0) -> 0.00 EUR
B144: =IFERROR(IF(ÚverNieJeSplatený*ÚverJeDobrý,ČísloPlatby,""), "") ->  | C144: =IFERROR(IF(ÚverNieJeSplatený*ÚverJeDobrý,DátumPlatby,PočiatočnýDátumÚveru), PočiatočnýDátumÚveru) -> 2019-07-17 | D144: =IFERROR(IF(ÚverNieJeSplatený*ÚverJeDobrý,HodnotaÚveru,""), "") ->  | E144: =IFERROR(IF(ÚverNieJeSplatený*ÚverJeDobrý,MesačnáSplátka,0), 0) -> 0.00 EUR | F144: =IFERROR(IF(ÚverNieJeSplatený*ÚverJeDobrý,Istina,0), 0) -> 0.00 EUR | G144: =IFERROR(IF(ÚverNieJeSplatený*ÚverJeDobrý,SumaÚrokov,0), 0) -> 0.00 EUR | H144: =IFERROR(IF(ÚverNieJeSplatený*ÚverJeDobrý,KonečnýZostatok,0), 0) -> 0.00 EUR
B145: =IFERROR(IF(ÚverNieJeSplatený*ÚverJeDobrý,ČísloPlatby,""), "") ->  | C145: =IFERROR(IF(ÚverNieJeSplatený*ÚverJeDobrý,DátumPlatby,PočiatočnýDátumÚveru), PočiatočnýDátumÚveru) -> 2019-07-17 | D145: =IFERROR(IF(ÚverNieJeSplatený*ÚverJeDobrý,HodnotaÚveru,""), "") ->  | E145: =IFERROR(IF(ÚverNieJeSplatený*ÚverJeDobrý,MesačnáSplátka,0), 0) -> 0.00 EUR | F145: =IFERROR(IF(ÚverNieJeSplatený*ÚverJeDobrý,Istina,0), 0) -> 0.00 EUR | G145: =IFERROR(IF(ÚverNieJeSplatený*ÚverJeDobrý,SumaÚrokov,0), 0) -> 0.00 EUR | H145: =IFERROR(IF(ÚverNieJeSplatený*ÚverJeDobrý,KonečnýZostatok,0), 0) -> 0.00 EUR
B146: =IFERROR(IF(ÚverNieJeSplatený*ÚverJeDobrý,ČísloPlatby,""), "") ->  | C146: =IFERROR(IF(ÚverNieJeSplatený*ÚverJeDobrý,DátumPlatby,PočiatočnýDátumÚveru), PočiatočnýDátumÚveru) -> 2019-07-17 | D146: =IFERROR(IF(ÚverNieJeSplatený*ÚverJeDobrý,HodnotaÚveru,""), "") ->  | E146: =IFERROR(IF(ÚverNieJeSplatený*ÚverJeDobrý,MesačnáSplátka,0), 0) -> 0.00 EUR | F146: =IFERROR(IF(ÚverNieJeSplatený*ÚverJeDobrý,Istina,0), 0) -> 0.00 EUR | G146: =IFERROR(IF(ÚverNieJeSplatený*ÚverJeDobrý,SumaÚrokov,0), 0) -> 0.00 EUR | H146: =IFERROR(IF(ÚverNieJeSplatený*ÚverJeDobrý,KonečnýZostatok,0), 0) -> 0.00 EUR
B147: =IFERROR(IF(ÚverNieJeSplatený*ÚverJeDobrý,ČísloPlatby,""), "") ->  | C147: =IFERROR(IF(ÚverNieJeSplatený*ÚverJeDobrý,DátumPlatby,PočiatočnýDátumÚveru), PočiatočnýDátumÚveru) -> 2019-07-17 | D147: =IFERROR(IF(ÚverNieJeSplatený*ÚverJeDobrý,HodnotaÚveru,""), "") ->  | E147: =IFERROR(IF(ÚverNieJeSplatený*ÚverJeDobrý,MesačnáSplátka,0), 0) -> 0.00 EUR | F147: =IFERROR(IF(ÚverNieJeSplatený*ÚverJeDobrý,Istina,0), 0) -> 0.00 EUR | G147: =IFERROR(IF(ÚverNieJeSplatený*ÚverJeDobrý,SumaÚrokov,0), 0) -> 0.00 EUR | H147: =IFERROR(IF(ÚverNieJeSplatený*ÚverJeDobrý,KonečnýZostatok,0), 0) -> 0.00 EUR
B148: =IFERROR(IF(ÚverNieJeSplatený*ÚverJeDobrý,ČísloPlatby,""), "") ->  | C148: =IFERROR(IF(ÚverNieJeSplatený*ÚverJeDobrý,DátumPlatby,PočiatočnýDátumÚveru), PočiatočnýDátumÚveru) -> 2019-07-17 | D148: =IFERROR(IF(ÚverNieJeSplatený*ÚverJeDobrý,HodnotaÚveru,""), "") ->  | E148: =IFERROR(IF(ÚverNieJeSplatený*ÚverJeDobrý,MesačnáSplátka,0), 0) -> 0.00 EUR | F148: =IFERROR(IF(ÚverNieJeSplatený*ÚverJeDobrý,Istina,0), 0) -> 0.00 EUR | G148: =IFERROR(IF(ÚverNieJeSplatený*ÚverJeDobrý,SumaÚrokov,0), 0) -> 0.00 EUR | H148: =IFERROR(IF(ÚverNieJeSplatený*ÚverJeDobrý,KonečnýZostatok,0), 0) -> 0.00 EUR
B149: =IFERROR(IF(ÚverNieJeSplatený*ÚverJeDobrý,ČísloPlatby,""), "") ->  | C149: =IFERROR(IF(ÚverNieJeSplatený*ÚverJeDobrý,DátumPlatby,PočiatočnýDátumÚveru), PočiatočnýDátumÚveru) -> 2019-07-17 | D149: =IFERROR(IF(ÚverNieJeSplatený*ÚverJeDobrý,HodnotaÚveru,""), "") ->  | E149: =IFERROR(IF(ÚverNieJeSplatený*ÚverJeDobrý,MesačnáSplátka,0), 0) -> 0.00 EUR | F149: =IFERROR(IF(ÚverNieJeSplatený*ÚverJeDobrý,Istina,0), 0) -> 0.00 EUR | G149: =IFERROR(IF(ÚverNieJeSplatený*ÚverJeDobrý,SumaÚrokov,0), 0) -> 0.00 EUR | H149: =IFERROR(IF(ÚverNieJeSplatený*ÚverJeDobrý,KonečnýZostatok,0), 0) -> 0.00 EUR
B150: =IFERROR(IF(ÚverNieJeSplatený*ÚverJeDobrý,ČísloPlatby,""), "") ->  | C150: =IFERROR(IF(ÚverNieJeSplatený*ÚverJeDobrý,DátumPlatby,PočiatočnýDátumÚveru), PočiatočnýDátumÚveru) -> 2019-07-17 | D150: =IFERROR(IF(ÚverNieJeSplatený*ÚverJeDobrý,HodnotaÚveru,""), "") ->  | E150: =IFERROR(IF(ÚverNieJeSplatený*ÚverJeDobrý,MesačnáSplátka,0), 0) -> 0.00 EUR | F150: =IFERROR(IF(ÚverNieJeSplatený*ÚverJeDobrý,Istina,0), 0) -> 0.00 EUR | G150: =IFERROR(IF(ÚverNieJeSplatený*ÚverJeDobrý,SumaÚrokov,0), 0) -> 0.00 EUR | H150: =IFERROR(IF(ÚverNieJeSplatený*ÚverJeDobrý,KonečnýZostatok,0), 0) -> 0.00 EUR
B151: =IFERROR(IF(ÚverNieJeSplatený*ÚverJeDobrý,ČísloPlatby,""), "") ->  | C151: =IFERROR(IF(ÚverNieJeSplatený*ÚverJeDobrý,DátumPlatby,PočiatočnýDátumÚveru), PočiatočnýDátumÚveru) -> 2019-07-17 | D151: =IFERROR(IF(ÚverNieJeSplatený*ÚverJeDobrý,HodnotaÚveru,""), "") ->  | E151: =IFERROR(IF(ÚverNieJeSplatený*ÚverJeDobrý,MesačnáSplátka,0), 0) -> 0.00 EUR | F151: =IFERROR(IF(ÚverNieJeSplatený*ÚverJeDobrý,Istina,0), 0) -> 0.00 EUR | G151: =IFERROR(IF(ÚverNieJeSplatený*ÚverJeDobrý,SumaÚrokov,0), 0) -> 0.00 EUR | H151: =IFERROR(IF(ÚverNieJeSplatený*ÚverJeDobrý,KonečnýZostatok,0), 0) -> 0.00 EUR
B152: =IFERROR(IF(ÚverNieJeSplatený*ÚverJeDobrý,ČísloPlatby,""), "") ->  | C152: =IFERROR(IF(ÚverNieJeSplatený*ÚverJeDobrý,DátumPlatby,PočiatočnýDátumÚveru), PočiatočnýDátumÚveru) -> 2019-07-17 | D152: =IFERROR(IF(ÚverNieJeSplatený*ÚverJeDobrý,HodnotaÚveru,""), "") ->  | E152: =IFERROR(IF(ÚverNieJeSplatený*ÚverJeDobrý,MesačnáSplátka,0), 0) -> 0.00 EUR | F152: =IFERROR(IF(ÚverNieJeSplatený*ÚverJeDobrý,Istina,0), 0) -> 0.00 EUR | G152: =IFERROR(IF(ÚverNieJeSplatený*ÚverJeDobrý,SumaÚrokov,0), 0) -> 0.00 EUR | H152: =IFERROR(IF(ÚverNieJeSplatený*ÚverJeDobrý,KonečnýZostatok,0), 0) -> 0.00 EUR
B153: =IFERROR(IF(ÚverNieJeSplatený*ÚverJeDobrý,ČísloPlatby,""), "") ->  | C153: =IFERROR(IF(ÚverNieJeSplatený*ÚverJeDobrý,DátumPlatby,PočiatočnýDátumÚveru), PočiatočnýDátumÚveru) -> 2019-07-17 | D153: =IFERROR(IF(ÚverNieJeSplatený*ÚverJeDobrý,HodnotaÚveru,""), "") ->  | E153: =IFERROR(IF(ÚverNieJeSplatený*ÚverJeDobrý,MesačnáSplátka,0), 0) -> 0.00 EUR | F153: =IFERROR(IF(ÚverNieJeSplatený*ÚverJeDobrý,Istina,0), 0) -> 0.00 EUR | G153: =IFERROR(IF(ÚverNieJeSplatený*ÚverJeDobrý,SumaÚrokov,0), 0) -> 0.00 EUR | H153: =IFERROR(IF(ÚverNieJeSplatený*ÚverJeDobrý,KonečnýZostatok,0), 0) -> 0.00 EUR
B154: =IFERROR(IF(ÚverNieJeSplatený*ÚverJeDobrý,ČísloPlatby,""), "") ->  | C154: =IFERROR(IF(ÚverNieJeSplatený*ÚverJeDobrý,DátumPlatby,PočiatočnýDátumÚveru), PočiatočnýDátumÚveru) -> 2019-07-17 | D154: =IFERROR(IF(ÚverNieJeSplatený*ÚverJeDobrý,HodnotaÚveru,""), "") ->  | E154: =IFERROR(IF(ÚverNieJeSplatený*ÚverJeDobrý,MesačnáSplátka,0), 0) -> 0.00 EUR | F154: =IFERROR(IF(ÚverNieJeSplatený*ÚverJeDobrý,Istina,0), 0) -> 0.00 EUR | G154: =IFERROR(IF(ÚverNieJeSplatený*ÚverJeDobrý,SumaÚrokov,0), 0) -> 0.00 EUR | H154: =IFERROR(IF(ÚverNieJeSplatený*ÚverJeDobrý,KonečnýZostatok,0), 0) -> 0.00 EUR
B155: =IFERROR(IF(ÚverNieJeSplatený*ÚverJeDobrý,ČísloPlatby,""), "") ->  | C155: =IFERROR(IF(ÚverNieJeSplatený*ÚverJeDobrý,DátumPlatby,PočiatočnýDátumÚveru), PočiatočnýDátumÚveru) -> 2019-07-17 | D155: =IFERROR(IF(ÚverNieJeSplatený*ÚverJeDobrý,HodnotaÚveru,""), "") ->  | E155: =IFERROR(IF(ÚverNieJeSplatený*ÚverJeDobrý,MesačnáSplátka,0), 0) -> 0.00 EUR | F155: =IFERROR(IF(ÚverNieJeSplatený*ÚverJeDobrý,Istina,0), 0) -> 0.00 EUR | G155: =IFERROR(IF(ÚverNieJeSplatený*ÚverJeDobrý,SumaÚrokov,0), 0) -> 0.00 EUR | H155: =IFERROR(IF(ÚverNieJeSplatený*ÚverJeDobrý,KonečnýZostatok,0), 0) -> 0.00 EUR
B156: =IFERROR(IF(ÚverNieJeSplatený*ÚverJeDobrý,ČísloPlatby,""), "") ->  | C156: =IFERROR(IF(ÚverNieJeSplatený*ÚverJeDobrý,DátumPlatby,PočiatočnýDátumÚveru), PočiatočnýDátumÚveru) -> 2019-07-17 | D156: =IFERROR(IF(ÚverNieJeSplatený*ÚverJeDobrý,HodnotaÚveru,""), "") ->  | E156: =IFERROR(IF(ÚverNieJeSplatený*ÚverJeDobrý,MesačnáSplátka,0), 0) -> 0.00 EUR | F156: =IFERROR(IF(ÚverNieJeSplatený*ÚverJeDobrý,Istina,0), 0) -> 0.00 EUR | G156: =IFERROR(IF(ÚverNieJeSplatený*ÚverJeDobrý,SumaÚrokov,0), 0) -> 0.00 EUR | H156: =IFERROR(IF(ÚverNieJeSplatený*ÚverJeDobrý,KonečnýZostatok,0), 0) -> 0.00 EUR
B157: =IFERROR(IF(ÚverNieJeSplatený*ÚverJeDobrý,ČísloPlatby,""), "") ->  | C157: =IFERROR(IF(ÚverNieJeSplatený*ÚverJeDobrý,DátumPlatby,PočiatočnýDátumÚveru), PočiatočnýDátumÚveru) -> 2019-07-17 | D157: =IFERROR(IF(ÚverNieJeSplatený*ÚverJeDobrý,HodnotaÚveru,""), "") ->  | E157: =IFERROR(IF(ÚverNieJeSplatený*ÚverJeDobrý,MesačnáSplátka,0), 0) -> 0.00 EUR | F157: =IFERROR(IF(ÚverNieJeSplatený*ÚverJeDobrý,Istina,0), 0) -> 0.00 EUR | G157: =IFERROR(IF(ÚverNieJeSplatený*ÚverJeDobrý,SumaÚrokov,0), 0) -> 0.00 EUR | H157: =IFERROR(IF(ÚverNieJeSplatený*ÚverJeDobrý,KonečnýZostatok,0), 0) -> 0.00 EUR
B158: =IFERROR(IF(ÚverNieJeSplatený*ÚverJeDobrý,ČísloPlatby,""), "") ->  | C158: =IFERROR(IF(ÚverNieJeSplatený*ÚverJeDobrý,DátumPlatby,PočiatočnýDátumÚveru), PočiatočnýDátumÚveru) -> 2019-07-17 | D158: =IFERROR(IF(ÚverNieJeSplatený*ÚverJeDobrý,HodnotaÚveru,""), "") ->  | E158: =IFERROR(IF(ÚverNieJeSplatený*ÚverJeDobrý,MesačnáSplátka,0), 0) -> 0.00 EUR | F158: =IFERROR(IF(ÚverNieJeSplatený*ÚverJeDobrý,Istina,0), 0) -> 0.00 EUR | G158: =IFERROR(IF(ÚverNieJeSplatený*ÚverJeDobrý,SumaÚrokov,0), 0) -> 0.00 EUR | H158: =IFERROR(IF(ÚverNieJeSplatený*ÚverJeDobrý,KonečnýZostatok,0), 0) -> 0.00 EUR
B159: =IFERROR(IF(ÚverNieJeSplatený*ÚverJeDobrý,ČísloPlatby,""), "") ->  | C159: =IFERROR(IF(ÚverNieJeSplatený*ÚverJeDobrý,DátumPlatby,PočiatočnýDátumÚveru), PočiatočnýDátumÚveru) -> 2019-07-17 | D159: =IFERROR(IF(ÚverNieJeSplatený*ÚverJeDobrý,HodnotaÚveru,""), "") ->  | E159: =IFERROR(IF(ÚverNieJeSplatený*ÚverJeDobrý,MesačnáSplátka,0), 0) -> 0.00 EUR | F159: =IFERROR(IF(ÚverNieJeSplatený*ÚverJeDobrý,Istina,0), 0) -> 0.00 EUR | G159: =IFERROR(IF(ÚverNieJeSplatený*ÚverJeDobrý,SumaÚrokov,0), 0) -> 0.00 EUR | H159: =IFERROR(IF(ÚverNieJeSplatený*ÚverJeDobrý,KonečnýZostatok,0), 0) -> 0.00 EUR
B160: =IFERROR(IF(ÚverNieJeSplatený*ÚverJeDobrý,ČísloPlatby,""), "") ->  | C160: =IFERROR(IF(ÚverNieJeSplatený*ÚverJeDobrý,DátumPlatby,PočiatočnýDátumÚveru), PočiatočnýDátumÚveru) -> 2019-07-17 | D160: =IFERROR(IF(ÚverNieJeSplatený*ÚverJeDobrý,HodnotaÚveru,""), "") ->  | E160: =IFERROR(IF(ÚverNieJeSplatený*ÚverJeDobrý,MesačnáSplátka,0), 0) -> 0.00 EUR | F160: =IFERROR(IF(ÚverNieJeSplatený*ÚverJeDobrý,Istina,0), 0) -> 0.00 EUR | G160: =IFERROR(IF(ÚverNieJeSplatený*ÚverJeDobrý,SumaÚrokov,0), 0) -> 0.00 EUR | H160: =IFERROR(IF(ÚverNieJeSplatený*ÚverJeDobrý,KonečnýZostatok,0), 0) -> 0.00 EUR
B161: =IFERROR(IF(ÚverNieJeSplatený*ÚverJeDobrý,ČísloPlatby,""), "") ->  | C161: =IFERROR(IF(ÚverNieJeSplatený*ÚverJeDobrý,DátumPlatby,PočiatočnýDátumÚveru), PočiatočnýDátumÚveru) -> 2019-07-17 | D161: =IFERROR(IF(ÚverNieJeSplatený*ÚverJeDobrý,HodnotaÚveru,""), "") ->  | E161: =IFERROR(IF(ÚverNieJeSplatený*ÚverJeDobrý,MesačnáSplátka,0), 0) -> 0.00 EUR | F161: =IFERROR(IF(ÚverNieJeSplatený*ÚverJeDobrý,Istina,0), 0) -> 0.00 EUR | G161: =IFERROR(IF(ÚverNieJeSplatený*ÚverJeDobrý,SumaÚrokov,0), 0) -> 0.00 EUR | H161: =IFERROR(IF(ÚverNieJeSplatený*ÚverJeDobrý,KonečnýZostatok,0), 0) -> 0.00 EUR
B162: =IFERROR(IF(ÚverNieJeSplatený*ÚverJeDobrý,ČísloPlatby,""), "") ->  | C162: =IFERROR(IF(ÚverNieJeSplatený*ÚverJeDobrý,DátumPlatby,PočiatočnýDátumÚveru), PočiatočnýDátumÚveru) -> 2019-07-17 | D162: =IFERROR(IF(ÚverNieJeSplatený*ÚverJeDobrý,HodnotaÚveru,""), "") ->  | E162: =IFERROR(IF(ÚverNieJeSplatený*ÚverJeDobrý,MesačnáSplátka,0), 0) -> 0.00 EUR | F162: =IFERROR(IF(ÚverNieJeSplatený*ÚverJeDobrý,Istina,0), 0) -> 0.00 EUR | G162: =IFERROR(IF(ÚverNieJeSplatený*ÚverJeDobrý,SumaÚrokov,0), 0) -> 0.00 EUR | H162: =IFERROR(IF(ÚverNieJeSplatený*ÚverJeDobrý,KonečnýZostatok,0), 0) -> 0.00 EUR
B163: =IFERROR(IF(ÚverNieJeSplatený*ÚverJeDobrý,ČísloPlatby,""), "") ->  | C163: =IFERROR(IF(ÚverNieJeSplatený*ÚverJeDobrý,DátumPlatby,PočiatočnýDátumÚveru), PočiatočnýDátumÚveru) -> 2019-07-17 | D163: =IFERROR(IF(ÚverNieJeSplatený*ÚverJeDobrý,HodnotaÚveru,""), "") ->  | E163: =IFERROR(IF(ÚverNieJeSplatený*ÚverJeDobrý,MesačnáSplátka,0), 0) -> 0.00 EUR | F163: =IFERROR(IF(ÚverNieJeSplatený*ÚverJeDobrý,Istina,0), 0) -> 0.00 EUR | G163: =IFERROR(IF(ÚverNieJeSplatený*ÚverJeDobrý,SumaÚrokov,0), 0) -> 0.00 EUR | H163: =IFERROR(IF(ÚverNieJeSplatený*ÚverJeDobrý,KonečnýZostatok,0), 0) -> 0.00 EUR
B164: =IFERROR(IF(ÚverNieJeSplatený*ÚverJeDobrý,ČísloPlatby,""), "") ->  | C164: =IFERROR(IF(ÚverNieJeSplatený*ÚverJeDobrý,DátumPlatby,PočiatočnýDátumÚveru), PočiatočnýDátumÚveru) -> 2019-07-17 | D164: =IFERROR(IF(ÚverNieJeSplatený*ÚverJeDobrý,HodnotaÚveru,""), "") ->  | E164: =IFERROR(IF(ÚverNieJeSplatený*ÚverJeDobrý,MesačnáSplátka,0), 0) -> 0.00 EUR | F164: =IFERROR(IF(ÚverNieJeSplatený*ÚverJeDobrý,Istina,0), 0) -> 0.00 EUR | G164: =IFERROR(IF(ÚverNieJeSplatený*ÚverJeDobrý,SumaÚrokov,0), 0) -> 0.00 EUR | H164: =IFERROR(IF(ÚverNieJeSplatený*ÚverJeDobrý,KonečnýZostatok,0), 0) -> 0.00 EUR
B165: =IFERROR(IF(ÚverNieJeSplatený*ÚverJeDobrý,ČísloPlatby,""), "") ->  | C165: =IFERROR(IF(ÚverNieJeSplatený*ÚverJeDobrý,DátumPlatby,PočiatočnýDátumÚveru), PočiatočnýDátumÚveru) -> 2019-07-17 | D165: =IFERROR(IF(ÚverNieJeSplatený*ÚverJeDobrý,HodnotaÚveru,""), "") ->  | E165: =IFERROR(IF(ÚverNieJeSplatený*ÚverJeDobrý,MesačnáSplátka,0), 0) -> 0.00 EUR | F165: =IFERROR(IF(ÚverNieJeSplatený*ÚverJeDobrý,Istina,0), 0) -> 0.00 EUR | G165: =IFERROR(IF(ÚverNieJeSplatený*ÚverJeDobrý,SumaÚrokov,0), 0) -> 0.00 EUR | H165: =IFERROR(IF(ÚverNieJeSplatený*ÚverJeDobrý,KonečnýZostatok,0), 0) -> 0.00 EUR
B166: =IFERROR(IF(ÚverNieJeSplatený*ÚverJeDobrý,ČísloPlatby,""), "") ->  | C166: =IFERROR(IF(ÚverNieJeSplatený*ÚverJeDobrý,DátumPlatby,PočiatočnýDátumÚveru), PočiatočnýDátumÚveru) -> 2019-07-17 | D166: =IFERROR(IF(ÚverNieJeSplatený*ÚverJeDobrý,HodnotaÚveru,""), "") ->  | E166: =IFERROR(IF(ÚverNieJeSplatený*ÚverJeDobrý,MesačnáSplátka,0), 0) -> 0.00 EUR | F166: =IFERROR(IF(ÚverNieJeSplatený*ÚverJeDobrý,Istina,0), 0) -> 0.00 EUR | G166: =IFERROR(IF(ÚverNieJeSplatený*ÚverJeDobrý,SumaÚrokov,0), 0) -> 0.00 EUR | H166: =IFERROR(IF(ÚverNieJeSplatený*ÚverJeDobrý,KonečnýZostatok,0), 0) -> 0.00 EUR
B167: =IFERROR(IF(ÚverNieJeSplatený*ÚverJeDobrý,ČísloPlatby,""), "") ->  | C167: =IFERROR(IF(ÚverNieJeSplatený*ÚverJeDobrý,DátumPlatby,PočiatočnýDátumÚveru), PočiatočnýDátumÚveru) -> 2019-07-17 | D167: =IFERROR(IF(ÚverNieJeSplatený*ÚverJeDobrý,HodnotaÚveru,""), "") ->  | E167: =IFERROR(IF(ÚverNieJeSplatený*ÚverJeDobrý,MesačnáSplátka,0), 0) -> 0.00 EUR | F167: =IFERROR(IF(ÚverNieJeSplatený*ÚverJeDobrý,Istina,0), 0) -> 0.00 EUR | G167: =IFERROR(IF(ÚverNieJeSplatený*ÚverJeDobrý,SumaÚrokov,0), 0) -> 0.00 EUR | H167: =IFERROR(IF(ÚverNieJeSplatený*ÚverJeDobrý,KonečnýZostatok,0), 0) -> 0.00 EUR
B168: =IFERROR(IF(ÚverNieJeSplatený*ÚverJeDobrý,ČísloPlatby,""), "") ->  | C168: =IFERROR(IF(ÚverNieJeSplatený*ÚverJeDobrý,DátumPlatby,PočiatočnýDátumÚveru), PočiatočnýDátumÚveru) -> 2019-07-17 | D168: =IFERROR(IF(ÚverNieJeSplatený*ÚverJeDobrý,HodnotaÚveru,""), "") ->  | E168: =IFERROR(IF(ÚverNieJeSplatený*ÚverJeDobrý,MesačnáSplátka,0), 0) -> 0.00 EUR | F168: =IFERROR(IF(ÚverNieJeSplatený*ÚverJeDobrý,Istina,0), 0) -> 0.00 EUR | G168: =IFERROR(IF(ÚverNieJeSplatený*ÚverJeDobrý,SumaÚrokov,0), 0) -> 0.00 EUR | H168: =IFERROR(IF(ÚverNieJeSplatený*ÚverJeDobrý,KonečnýZostatok,0), 0) -> 0.00 EUR
B169: =IFERROR(IF(ÚverNieJeSplatený*ÚverJeDobrý,ČísloPlatby,""), "") ->  | C169: =IFERROR(IF(ÚverNieJeSplatený*ÚverJeDobrý,DátumPlatby,PočiatočnýDátumÚveru), PočiatočnýDátumÚveru) -> 2019-07-17 | D169: =IFERROR(IF(ÚverNieJeSplatený*ÚverJeDobrý,HodnotaÚveru,""), "") ->  | E169: =IFERROR(IF(ÚverNieJeSplatený*ÚverJeDobrý,MesačnáSplátka,0), 0) -> 0.00 EUR | F169: =IFERROR(IF(ÚverNieJeSplatený*ÚverJeDobrý,Istina,0), 0) -> 0.00 EUR | G169: =IFERROR(IF(ÚverNieJeSplatený*ÚverJeDobrý,SumaÚrokov,0), 0) -> 0.00 EUR | H169: =IFERROR(IF(ÚverNieJeSplatený*ÚverJeDobrý,KonečnýZostatok,0), 0) -> 0.00 EUR
B170: =IFERROR(IF(ÚverNieJeSplatený*ÚverJeDobrý,ČísloPlatby,""), "") ->  | C170: =IFERROR(IF(ÚverNieJeSplatený*ÚverJeDobrý,DátumPlatby,PočiatočnýDátumÚveru), PočiatočnýDátumÚveru) -> 2019-07-17 | D170: =IFERROR(IF(ÚverNieJeSplatený*ÚverJeDobrý,HodnotaÚveru,""), "") ->  | E170: =IFERROR(IF(ÚverNieJeSplatený*ÚverJeDobrý,MesačnáSplátka,0), 0) -> 0.00 EUR | F170: =IFERROR(IF(ÚverNieJeSplatený*ÚverJeDobrý,Istina,0), 0) -> 0.00 EUR | G170: =IFERROR(IF(ÚverNieJeSplatený*ÚverJeDobrý,SumaÚrokov,0), 0) -> 0.00 EUR | H170: =IFERROR(IF(ÚverNieJeSplatený*ÚverJeDobrý,KonečnýZostatok,0), 0) -> 0.00 EUR
B171: =IFERROR(IF(ÚverNieJeSplatený*ÚverJeDobrý,ČísloPlatby,""), "") ->  | C171: =IFERROR(IF(ÚverNieJeSplatený*ÚverJeDobrý,DátumPlatby,PočiatočnýDátumÚveru), PočiatočnýDátumÚveru) -> 2019-07-17 | D171: =IFERROR(IF(ÚverNieJeSplatený*ÚverJeDobrý,HodnotaÚveru,""), "") ->  | E171: =IFERROR(IF(ÚverNieJeSplatený*ÚverJeDobrý,MesačnáSplátka,0), 0) -> 0.00 EUR | F171: =IFERROR(IF(ÚverNieJeSplatený*ÚverJeDobrý,Istina,0), 0) -> 0.00 EUR | G171: =IFERROR(IF(ÚverNieJeSplatený*ÚverJeDobrý,SumaÚrokov,0), 0) -> 0.00 EUR | H171: =IFERROR(IF(ÚverNieJeSplatený*ÚverJeDobrý,KonečnýZostatok,0), 0) -> 0.00 EUR
B172: =IFERROR(IF(ÚverNieJeSplatený*ÚverJeDobrý,ČísloPlatby,""), "") ->  | C172: =IFERROR(IF(ÚverNieJeSplatený*ÚverJeDobrý,DátumPlatby,PočiatočnýDátumÚveru), PočiatočnýDátumÚveru) -> 2019-07-17 | D172: =IFERROR(IF(ÚverNieJeSplatený*ÚverJeDobrý,HodnotaÚveru,""), "") ->  | E172: =IFERROR(IF(ÚverNieJeSplatený*ÚverJeDobrý,MesačnáSplátka,0), 0) -> 0.00 EUR | F172: =IFERROR(IF(ÚverNieJeSplatený*ÚverJeDobrý,Istina,0), 0) -> 0.00 EUR | G172: =IFERROR(IF(ÚverNieJeSplatený*ÚverJeDobrý,SumaÚrokov,0), 0) -> 0.00 EUR | H172: =IFERROR(IF(ÚverNieJeSplatený*ÚverJeDobrý,KonečnýZostatok,0), 0) -> 0.00 EUR
B173: =IFERROR(IF(ÚverNieJeSplatený*ÚverJeDobrý,ČísloPlatby,""), "") ->  | C173: =IFERROR(IF(ÚverNieJeSplatený*ÚverJeDobrý,DátumPlatby,PočiatočnýDátumÚveru), PočiatočnýDátumÚveru) -> 2019-07-17 | D173: =IFERROR(IF(ÚverNieJeSplatený*ÚverJeDobrý,HodnotaÚveru,""), "") ->  | E173: =IFERROR(IF(ÚverNieJeSplatený*ÚverJeDobrý,MesačnáSplátka,0), 0) -> 0.00 EUR | F173: =IFERROR(IF(ÚverNieJeSplatený*ÚverJeDobrý,Istina,0), 0) -> 0.00 EUR | G173: =IFERROR(IF(ÚverNieJeSplatený*ÚverJeDobrý,SumaÚrokov,0), 0) -> 0.00 EUR | H173: =IFERROR(IF(ÚverNieJeSplatený*ÚverJeDobrý,KonečnýZostatok,0), 0) -> 0.00 EUR
B174: =IFERROR(IF(ÚverNieJeSplatený*ÚverJeDobrý,ČísloPlatby,""), "") ->  | C174: =IFERROR(IF(ÚverNieJeSplatený*ÚverJeDobrý,DátumPlatby,PočiatočnýDátumÚveru), PočiatočnýDátumÚveru) -> 2019-07-17 | D174: =IFERROR(IF(ÚverNieJeSplatený*ÚverJeDobrý,HodnotaÚveru,""), "") ->  | E174: =IFERROR(IF(ÚverNieJeSplatený*ÚverJeDobrý,MesačnáSplátka,0), 0) -> 0.00 EUR | F174: =IFERROR(IF(ÚverNieJeSplatený*ÚverJeDobrý,Istina,0), 0) -> 0.00 EUR | G174: =IFERROR(IF(ÚverNieJeSplatený*ÚverJeDobrý,SumaÚrokov,0), 0) -> 0.00 EUR | H174: =IFERROR(IF(ÚverNieJeSplatený*ÚverJeDobrý,KonečnýZostatok,0), 0) -> 0.00 EUR
B175: =IFERROR(IF(ÚverNieJeSplatený*ÚverJeDobrý,ČísloPlatby,""), "") ->  | C175: =IFERROR(IF(ÚverNieJeSplatený*ÚverJeDobrý,DátumPlatby,PočiatočnýDátumÚveru), PočiatočnýDátumÚveru) -> 2019-07-17 | D175: =IFERROR(IF(ÚverNieJeSplatený*ÚverJeDobrý,HodnotaÚveru,""), "") ->  | E175: =IFERROR(IF(ÚverNieJeSplatený*ÚverJeDobrý,MesačnáSplátka,0), 0) -> 0.00 EUR | F175: =IFERROR(IF(ÚverNieJeSplatený*ÚverJeDobrý,Istina,0), 0) -> 0.00 EUR | G175: =IFERROR(IF(ÚverNieJeSplatený*ÚverJeDobrý,SumaÚrokov,0), 0) -> 0.00 EUR | H175: =IFERROR(IF(ÚverNieJeSplatený*ÚverJeDobrý,KonečnýZostatok,0), 0) -> 0.00 EUR
B176: =IFERROR(IF(ÚverNieJeSplatený*ÚverJeDobrý,ČísloPlatby,""), "") ->  | C176: =IFERROR(IF(ÚverNieJeSplatený*ÚverJeDobrý,DátumPlatby,PočiatočnýDátumÚveru), PočiatočnýDátumÚveru) -> 2019-07-17 | D176: =IFERROR(IF(ÚverNieJeSplatený*ÚverJeDobrý,HodnotaÚveru,""), "") ->  | E176: =IFERROR(IF(ÚverNieJeSplatený*ÚverJeDobrý,MesačnáSplátka,0), 0) -> 0.00 EUR | F176: =IFERROR(IF(ÚverNieJeSplatený*ÚverJeDobrý,Istina,0), 0) -> 0.00 EUR | G176: =IFERROR(IF(ÚverNieJeSplatený*ÚverJeDobrý,SumaÚrokov,0), 0) -> 0.00 EUR | H176: =IFERROR(IF(ÚverNieJeSplatený*ÚverJeDobrý,KonečnýZostatok,0), 0) -> 0.00 EUR
B177: =IFERROR(IF(ÚverNieJeSplatený*ÚverJeDobrý,ČísloPlatby,""), "") ->  | C177: =IFERROR(IF(ÚverNieJeSplatený*ÚverJeDobrý,DátumPlatby,PočiatočnýDátumÚveru), PočiatočnýDátumÚveru) -> 2019-07-17 | D177: =IFERROR(IF(ÚverNieJeSplatený*ÚverJeDobrý,HodnotaÚveru,""), "") ->  | E177: =IFERROR(IF(ÚverNieJeSplatený*ÚverJeDobrý,MesačnáSplátka,0), 0) -> 0.00 EUR | F177: =IFERROR(IF(ÚverNieJeSplatený*ÚverJeDobrý,Istina,0), 0) -> 0.00 EUR | G177: =IFERROR(IF(ÚverNieJeSplatený*ÚverJeDobrý,SumaÚrokov,0), 0) -> 0.00 EUR | H177: =IFERROR(IF(ÚverNieJeSplatený*ÚverJeDobrý,KonečnýZostatok,0), 0) -> 0.00 EUR
B178: =IFERROR(IF(ÚverNieJeSplatený*ÚverJeDobrý,ČísloPlatby,""), "") ->  | C178: =IFERROR(IF(ÚverNieJeSplatený*ÚverJeDobrý,DátumPlatby,PočiatočnýDátumÚveru), PočiatočnýDátumÚveru) -> 2019-07-17 | D178: =IFERROR(IF(ÚverNieJeSplatený*ÚverJeDobrý,HodnotaÚveru,""), "") ->  | E178: =IFERROR(IF(ÚverNieJeSplatený*ÚverJeDobrý,MesačnáSplátka,0), 0) -> 0.00 EUR | F178: =IFERROR(IF(ÚverNieJeSplatený*ÚverJeDobrý,Istina,0), 0) -> 0.00 EUR | G178: =IFERROR(IF(ÚverNieJeSplatený*ÚverJeDobrý,SumaÚrokov,0), 0) -> 0.00 EUR | H178: =IFERROR(IF(ÚverNieJeSplatený*ÚverJeDobrý,KonečnýZostatok,0), 0) -> 0.00 EUR
B179: =IFERROR(IF(ÚverNieJeSplatený*ÚverJeDobrý,ČísloPlatby,""), "") ->  | C179: =IFERROR(IF(ÚverNieJeSplatený*ÚverJeDobrý,DátumPlatby,PočiatočnýDátumÚveru), PočiatočnýDátumÚveru) -> 2019-07-17 | D179: =IFERROR(IF(ÚverNieJeSplatený*ÚverJeDobrý,HodnotaÚveru,""), "") ->  | E179: =IFERROR(IF(ÚverNieJeSplatený*ÚverJeDobrý,MesačnáSplátka,0), 0) -> 0.00 EUR | F179: =IFERROR(IF(ÚverNieJeSplatený*ÚverJeDobrý,Istina,0), 0) -> 0.00 EUR | G179: =IFERROR(IF(ÚverNieJeSplatený*ÚverJeDobrý,SumaÚrokov,0), 0) -> 0.00 EUR | H179: =IFERROR(IF(ÚverNieJeSplatený*ÚverJeDobrý,KonečnýZostatok,0), 0) -> 0.00 EUR
B180: =IFERROR(IF(ÚverNieJeSplatený*ÚverJeDobrý,ČísloPlatby,""), "") ->  | C180: =IFERROR(IF(ÚverNieJeSplatený*ÚverJeDobrý,DátumPlatby,PočiatočnýDátumÚveru), PočiatočnýDátumÚveru) -> 2019-07-17 | D180: =IFERROR(IF(ÚverNieJeSplatený*ÚverJeDobrý,HodnotaÚveru,""), "") ->  | E180: =IFERROR(IF(ÚverNieJeSplatený*ÚverJeDobrý,MesačnáSplátka,0), 0) -> 0.00 EUR | F180: =IFERROR(IF(ÚverNieJeSplatený*ÚverJeDobrý,Istina,0), 0) -> 0.00 EUR | G180: =IFERROR(IF(ÚverNieJeSplatený*ÚverJeDobrý,SumaÚrokov,0), 0) -> 0.00 EUR | H180: =IFERROR(IF(ÚverNieJeSplatený*ÚverJeDobrý,KonečnýZostatok,0), 0) -> 0.00 EUR
B181: =IFERROR(IF(ÚverNieJeSplatený*ÚverJeDobrý,ČísloPlatby,""), "") ->  | C181: =IFERROR(IF(ÚverNieJeSplatený*ÚverJeDobrý,DátumPlatby,PočiatočnýDátumÚveru), PočiatočnýDátumÚveru) -> 2019-07-17 | D181: =IFERROR(IF(ÚverNieJeSplatený*ÚverJeDobrý,HodnotaÚveru,""), "") ->  | E181: =IFERROR(IF(ÚverNieJeSplatený*ÚverJeDobrý,MesačnáSplátka,0), 0) -> 0.00 EUR | F181: =IFERROR(IF(ÚverNieJeSplatený*ÚverJeDobrý,Istina,0), 0) -> 0.00 EUR | G181: =IFERROR(IF(ÚverNieJeSplatený*ÚverJeDobrý,SumaÚrokov,0), 0) -> 0.00 EUR | H181: =IFERROR(IF(ÚverNieJeSplatený*ÚverJeDobrý,KonečnýZostatok,0), 0) -> 0.00 EUR
B182: =IFERROR(IF(ÚverNieJeSplatený*ÚverJeDobrý,ČísloPlatby,""), "") ->  | C182: =IFERROR(IF(ÚverNieJeSplatený*ÚverJeDobrý,DátumPlatby,PočiatočnýDátumÚveru), PočiatočnýDátumÚveru) -> 2019-07-17 | D182: =IFERROR(IF(ÚverNieJeSplatený*ÚverJeDobrý,HodnotaÚveru,""), "") ->  | E182: =IFERROR(IF(ÚverNieJeSplatený*ÚverJeDobrý,MesačnáSplátka,0), 0) -> 0.00 EUR | F182: =IFERROR(IF(ÚverNieJeSplatený*ÚverJeDobrý,Istina,0), 0) -> 0.00 EUR | G182: =IFERROR(IF(ÚverNieJeSplatený*ÚverJeDobrý,SumaÚrokov,0), 0) -> 0.00 EUR | H182: =IFERROR(IF(ÚverNieJeSplatený*ÚverJeDobrý,KonečnýZostatok,0), 0) -> 0.00 EUR
B183: =IFERROR(IF(ÚverNieJeSplatený*ÚverJeDobrý,ČísloPlatby,""), "") ->  | C183: =IFERROR(IF(ÚverNieJeSplatený*ÚverJeDobrý,DátumPlatby,PočiatočnýDátumÚveru), PočiatočnýDátumÚveru) -> 2019-07-17 | D183: =IFERROR(IF(ÚverNieJeSplatený*ÚverJeDobrý,HodnotaÚveru,""), "") ->  | E183: =IFERROR(IF(ÚverNieJeSplatený*ÚverJeDobrý,MesačnáSplátka,0), 0) -> 0.00 EUR | F183: =IFERROR(IF(ÚverNieJeSplatený*ÚverJeDobrý,Istina,0), 0) -> 0.00 EUR | G183: =IFERROR(IF(ÚverNieJeSplatený*ÚverJeDobrý,SumaÚrokov,0), 0) -> 0.00 EUR | H183: =IFERROR(IF(ÚverNieJeSplatený*ÚverJeDobrý,KonečnýZostatok,0), 0) -> 0.00 EUR
B184: =IFERROR(IF(ÚverNieJeSplatený*ÚverJeDobrý,ČísloPlatby,""), "") ->  | C184: =IFERROR(IF(ÚverNieJeSplatený*ÚverJeDobrý,DátumPlatby,PočiatočnýDátumÚveru), PočiatočnýDátumÚveru) -> 2019-07-17 | D184: =IFERROR(IF(ÚverNieJeSplatený*ÚverJeDobrý,HodnotaÚveru,""), "") ->  | E184: =IFERROR(IF(ÚverNieJeSplatený*ÚverJeDobrý,MesačnáSplátka,0), 0) -> 0.00 EUR | F184: =IFERROR(IF(ÚverNieJeSplatený*ÚverJeDobrý,Istina,0), 0) -> 0.00 EUR | G184: =IFERROR(IF(ÚverNieJeSplatený*ÚverJeDobrý,SumaÚrokov,0), 0) -> 0.00 EUR | H184: =IFERROR(IF(ÚverNieJeSplatený*ÚverJeDobrý,KonečnýZostatok,0), 0) -> 0.00 EUR
B185: =IFERROR(IF(ÚverNieJeSplatený*ÚverJeDobrý,ČísloPlatby,""), "") ->  | C185: =IFERROR(IF(ÚverNieJeSplatený*ÚverJeDobrý,DátumPlatby,PočiatočnýDátumÚveru), PočiatočnýDátumÚveru) -> 2019-07-17 | D185: =IFERROR(IF(ÚverNieJeSplatený*ÚverJeDobrý,HodnotaÚveru,""), "") ->  | E185: =IFERROR(IF(ÚverNieJeSplatený*ÚverJeDobrý,MesačnáSplátka,0), 0) -> 0.00 EUR | F185: =IFERROR(IF(ÚverNieJeSplatený*ÚverJeDobrý,Istina,0), 0) -> 0.00 EUR | G185: =IFERROR(IF(ÚverNieJeSplatený*ÚverJeDobrý,SumaÚrokov,0), 0) -> 0.00 EUR | H185: =IFERROR(IF(ÚverNieJeSplatený*ÚverJeDobrý,KonečnýZostatok,0), 0) -> 0.00 EUR
B186: =IFERROR(IF(ÚverNieJeSplatený*ÚverJeDobrý,ČísloPlatby,""), "") ->  | C186: =IFERROR(IF(ÚverNieJeSplatený*ÚverJeDobrý,DátumPlatby,PočiatočnýDátumÚveru), PočiatočnýDátumÚveru) -> 2019-07-17 | D186: =IFERROR(IF(ÚverNieJeSplatený*ÚverJeDobrý,HodnotaÚveru,""), "") ->  | E186: =IFERROR(IF(ÚverNieJeSplatený*ÚverJeDobrý,MesačnáSplátka,0), 0) -> 0.00 EUR | F186: =IFERROR(IF(ÚverNieJeSplatený*ÚverJeDobrý,Istina,0), 0) -> 0.00 EUR | G186: =IFERROR(IF(ÚverNieJeSplatený*ÚverJeDobrý,SumaÚrokov,0), 0) -> 0.00 EUR | H186: =IFERROR(IF(ÚverNieJeSplatený*ÚverJeDobrý,KonečnýZostatok,0), 0) -> 0.00 EUR
B187: =IFERROR(IF(ÚverNieJeSplatený*ÚverJeDobrý,ČísloPlatby,""), "") ->  | C187: =IFERROR(IF(ÚverNieJeSplatený*ÚverJeDobrý,DátumPlatby,PočiatočnýDátumÚveru), PočiatočnýDátumÚveru) -> 2019-07-17 | D187: =IFERROR(IF(ÚverNieJeSplatený*ÚverJeDobrý,HodnotaÚveru,""), "") ->  | E187: =IFERROR(IF(ÚverNieJeSplatený*ÚverJeDobrý,MesačnáSplátka,0), 0) -> 0.00 EUR | F187: =IFERROR(IF(ÚverNieJeSplatený*ÚverJeDobrý,Istina,0), 0) -> 0.00 EUR | G187: =IFERROR(IF(ÚverNieJeSplatený*ÚverJeDobrý,SumaÚrokov,0), 0) -> 0.00 EUR | H187: =IFERROR(IF(ÚverNieJeSplatený*ÚverJeDobrý,KonečnýZostatok,0), 0) -> 0.00 EUR
B188: =IFERROR(IF(ÚverNieJeSplatený*ÚverJeDobrý,ČísloPlatby,""), "") ->  | C188: =IFERROR(IF(ÚverNieJeSplatený*ÚverJeDobrý,DátumPlatby,PočiatočnýDátumÚveru), PočiatočnýDátumÚveru) -> 2019-07-17 | D188: =IFERROR(IF(ÚverNieJeSplatený*ÚverJeDobrý,HodnotaÚveru,""), "") ->  | E188: =IFERROR(IF(ÚverNieJeSplatený*ÚverJeDobrý,MesačnáSplátka,0), 0) -> 0.00 EUR | F188: =IFERROR(IF(ÚverNieJeSplatený*ÚverJeDobrý,Istina,0), 0) -> 0.00 EUR | G188: =IFERROR(IF(ÚverNieJeSplatený*ÚverJeDobrý,SumaÚrokov,0), 0) -> 0.00 EUR | H188: =IFERROR(IF(ÚverNieJeSplatený*ÚverJeDobrý,KonečnýZostatok,0), 0) -> 0.00 EUR
B189: =IFERROR(IF(ÚverNieJeSplatený*ÚverJeDobrý,ČísloPlatby,""), "") ->  | C189: =IFERROR(IF(ÚverNieJeSplatený*ÚverJeDobrý,DátumPlatby,PočiatočnýDátumÚveru), PočiatočnýDátumÚveru) -> 2019-07-17 | D189: =IFERROR(IF(ÚverNieJeSplatený*ÚverJeDobrý,HodnotaÚveru,""), "") ->  | E189: =IFERROR(IF(ÚverNieJeSplatený*ÚverJeDobrý,MesačnáSplátka,0), 0) -> 0.00 EUR | F189: =IFERROR(IF(ÚverNieJeSplatený*ÚverJeDobrý,Istina,0), 0) -> 0.00 EUR | G189: =IFERROR(IF(ÚverNieJeSplatený*ÚverJeDobrý,SumaÚrokov,0), 0) -> 0.00 EUR | H189: =IFERROR(IF(ÚverNieJeSplatený*ÚverJeDobrý,KonečnýZostatok,0), 0) -> 0.00 EUR
B190: =IFERROR(IF(ÚverNieJeSplatený*ÚverJeDobrý,ČísloPlatby,""), "") ->  | C190: =IFERROR(IF(ÚverNieJeSplatený*ÚverJeDobrý,DátumPlatby,PočiatočnýDátumÚveru), PočiatočnýDátumÚveru) -> 2019-07-17 | D190: =IFERROR(IF(ÚverNieJeSplatený*ÚverJeDobrý,HodnotaÚveru,""), "") ->  | E190: =IFERROR(IF(ÚverNieJeSplatený*ÚverJeDobrý,MesačnáSplátka,0), 0) -> 0.00 EUR | F190: =IFERROR(IF(ÚverNieJeSplatený*ÚverJeDobrý,Istina,0), 0) -> 0.00 EUR | G190: =IFERROR(IF(ÚverNieJeSplatený*ÚverJeDobrý,SumaÚrokov,0), 0) -> 0.00 EUR | H190: =IFERROR(IF(ÚverNieJeSplatený*ÚverJeDobrý,KonečnýZostatok,0), 0) -> 0.00 EUR
B191: =IFERROR(IF(ÚverNieJeSplatený*ÚverJeDobrý,ČísloPlatby,""), "") ->  | C191: =IFERROR(IF(ÚverNieJeSplatený*ÚverJeDobrý,DátumPlatby,PočiatočnýDátumÚveru), PočiatočnýDátumÚveru) -> 2019-07-17 | D191: =IFERROR(IF(ÚverNieJeSplatený*ÚverJeDobrý,HodnotaÚveru,""), "") ->  | E191: =IFERROR(IF(ÚverNieJeSplatený*ÚverJeDobrý,MesačnáSplátka,0), 0) -> 0.00 EUR | F191: =IFERROR(IF(ÚverNieJeSplatený*ÚverJeDobrý,Istina,0), 0) -> 0.00 EUR | G191: =IFERROR(IF(ÚverNieJeSplatený*ÚverJeDobrý,SumaÚrokov,0), 0) -> 0.00 EUR | H191: =IFERROR(IF(ÚverNieJeSplatený*ÚverJeDobrý,KonečnýZostatok,0), 0) -> 0.00 EUR
B192: =IFERROR(IF(ÚverNieJeSplatený*ÚverJeDobrý,ČísloPlatby,""), "") ->  | C192: =IFERROR(IF(ÚverNieJeSplatený*ÚverJeDobrý,DátumPlatby,PočiatočnýDátumÚveru), PočiatočnýDátumÚveru) -> 2019-07-17 | D192: =IFERROR(IF(ÚverNieJeSplatený*ÚverJeDobrý,HodnotaÚveru,""), "") ->  | E192: =IFERROR(IF(ÚverNieJeSplatený*ÚverJeDobrý,MesačnáSplátka,0), 0) -> 0.00 EUR | F192: =IFERROR(IF(ÚverNieJeSplatený*ÚverJeDobrý,Istina,0), 0) -> 0.00 EUR | G192: =IFERROR(IF(ÚverNieJeSplatený*ÚverJeDobrý,SumaÚrokov,0), 0) -> 0.00 EUR | H192: =IFERROR(IF(ÚverNieJeSplatený*ÚverJeDobrý,KonečnýZostatok,0), 0) -> 0.00 EUR
B193: =IFERROR(IF(ÚverNieJeSplatený*ÚverJeDobrý,ČísloPlatby,""), "") ->  | C193: =IFERROR(IF(ÚverNieJeSplatený*ÚverJeDobrý,DátumPlatby,PočiatočnýDátumÚveru), PočiatočnýDátumÚveru) -> 2019-07-17 | D193: =IFERROR(IF(ÚverNieJeSplatený*ÚverJeDobrý,HodnotaÚveru,""), "") ->  | E193: =IFERROR(IF(ÚverNieJeSplatený*ÚverJeDobrý,MesačnáSplátka,0), 0) -> 0.00 EUR | F193: =IFERROR(IF(ÚverNieJeSplatený*ÚverJeDobrý,Istina,0), 0) -> 0.00 EUR | G193: =IFERROR(IF(ÚverNieJeSplatený*ÚverJeDobrý,SumaÚrokov,0), 0) -> 0.00 EUR | H193: =IFERROR(IF(ÚverNieJeSplatený*ÚverJeDobrý,KonečnýZostatok,0), 0) -> 0.00 EUR
B194: =IFERROR(IF(ÚverNieJeSplatený*ÚverJeDobrý,ČísloPlatby,""), "") ->  | C194: =IFERROR(IF(ÚverNieJeSplatený*ÚverJeDobrý,DátumPlatby,PočiatočnýDátumÚveru), PočiatočnýDátumÚveru) -> 2019-07-17 | D194: =IFERROR(IF(ÚverNieJeSplatený*ÚverJeDobrý,HodnotaÚveru,""), "") ->  | E194: =IFERROR(IF(ÚverNieJeSplatený*ÚverJeDobrý,MesačnáSplátka,0), 0) -> 0.00 EUR | F194: =IFERROR(IF(ÚverNieJeSplatený*ÚverJeDobrý,Istina,0), 0) -> 0.00 EUR | G194: =IFERROR(IF(ÚverNieJeSplatený*ÚverJeDobrý,SumaÚrokov,0), 0) -> 0.00 EUR | H194: =IFERROR(IF(ÚverNieJeSplatený*ÚverJeDobrý,KonečnýZostatok,0), 0) -> 0.00 EUR
B195: =IFERROR(IF(ÚverNieJeSplatený*ÚverJeDobrý,ČísloPlatby,""), "") ->  | C195: =IFERROR(IF(ÚverNieJeSplatený*ÚverJeDobrý,DátumPlatby,PočiatočnýDátumÚveru), PočiatočnýDátumÚveru) -> 2019-07-17 | D195: =IFERROR(IF(ÚverNieJeSplatený*ÚverJeDobrý,HodnotaÚveru,""), "") ->  | E195: =IFERROR(IF(ÚverNieJeSplatený*ÚverJeDobrý,MesačnáSplátka,0), 0) -> 0.00 EUR | F195: =IFERROR(IF(ÚverNieJeSplatený*ÚverJeDobrý,Istina,0), 0) -> 0.00 EUR | G195: =IFERROR(IF(ÚverNieJeSplatený*ÚverJeDobrý,SumaÚrokov,0), 0) -> 0.00 EUR | H195: =IFERROR(IF(ÚverNieJeSplatený*ÚverJeDobrý,KonečnýZostatok,0), 0) -> 0.00 EUR
B196: =IFERROR(IF(ÚverNieJeSplatený*ÚverJeDobrý,ČísloPlatby,""), "") ->  | C196: =IFERROR(IF(ÚverNieJeSplatený*ÚverJeDobrý,DátumPlatby,PočiatočnýDátumÚveru), PočiatočnýDátumÚveru) -> 2019-07-17 | D196: =IFERROR(IF(ÚverNieJeSplatený*ÚverJeDobrý,HodnotaÚveru,""), "") ->  | E196: =IFERROR(IF(ÚverNieJeSplatený*ÚverJeDobrý,MesačnáSplátka,0), 0) -> 0.00 EUR | F196: =IFERROR(IF(ÚverNieJeSplatený*ÚverJeDobrý,Istina,0), 0) -> 0.00 EUR | G196: =IFERROR(IF(ÚverNieJeSplatený*ÚverJeDobrý,SumaÚrokov,0), 0) -> 0.00 EUR | H196: =IFERROR(IF(ÚverNieJeSplatený*ÚverJeDobrý,KonečnýZostatok,0), 0) -> 0.00 EUR
B197: =IFERROR(IF(ÚverNieJeSplatený*ÚverJeDobrý,ČísloPlatby,""), "") ->  | C197: =IFERROR(IF(ÚverNieJeSplatený*ÚverJeDobrý,DátumPlatby,PočiatočnýDátumÚveru), PočiatočnýDátumÚveru) -> 2019-07-17 | D197: =IFERROR(IF(ÚverNieJeSplatený*ÚverJeDobrý,HodnotaÚveru,""), "") ->  | E197: =IFERROR(IF(ÚverNieJeSplatený*ÚverJeDobrý,MesačnáSplátka,0), 0) -> 0.00 EUR | F197: =IFERROR(IF(ÚverNieJeSplatený*ÚverJeDobrý,Istina,0), 0) -> 0.00 EUR | G197: =IFERROR(IF(ÚverNieJeSplatený*ÚverJeDobrý,SumaÚrokov,0), 0) -> 0.00 EUR | H197: =IFERROR(IF(ÚverNieJeSplatený*ÚverJeDobrý,KonečnýZostatok,0), 0) -> 0.00 EUR
B198: =IFERROR(IF(ÚverNieJeSplatený*ÚverJeDobrý,ČísloPlatby,""), "") ->  | C198: =IFERROR(IF(ÚverNieJeSplatený*ÚverJeDobrý,DátumPlatby,PočiatočnýDátumÚveru), PočiatočnýDátumÚveru) -> 2019-07-17 | D198: =IFERROR(IF(ÚverNieJeSplatený*ÚverJeDobrý,HodnotaÚveru,""), "") ->  | E198: =IFERROR(IF(ÚverNieJeSplatený*ÚverJeDobrý,MesačnáSplátka,0), 0) -> 0.00 EUR | F198: =IFERROR(IF(ÚverNieJeSplatený*ÚverJeDobrý,Istina,0), 0) -> 0.00 EUR | G198: =IFERROR(IF(ÚverNieJeSplatený*ÚverJeDobrý,SumaÚrokov,0), 0) -> 0.00 EUR | H198: =IFERROR(IF(ÚverNieJeSplatený*ÚverJeDobrý,KonečnýZostatok,0), 0) -> 0.00 EUR
B199: =IFERROR(IF(ÚverNieJeSplatený*ÚverJeDobrý,ČísloPlatby,""), "") ->  | C199: =IFERROR(IF(ÚverNieJeSplatený*ÚverJeDobrý,DátumPlatby,PočiatočnýDátumÚveru), PočiatočnýDátumÚveru) -> 2019-07-17 | D199: =IFERROR(IF(ÚverNieJeSplatený*ÚverJeDobrý,HodnotaÚveru,""), "") ->  | E199: =IFERROR(IF(ÚverNieJeSplatený*ÚverJeDobrý,MesačnáSplátka,0), 0) -> 0.00 EUR | F199: =IFERROR(IF(ÚverNieJeSplatený*ÚverJeDobrý,Istina,0), 0) -> 0.00 EUR | G199: =IFERROR(IF(ÚverNieJeSplatený*ÚverJeDobrý,SumaÚrokov,0), 0) -> 0.00 EUR | H199: =IFERROR(IF(ÚverNieJeSplatený*ÚverJeDobrý,KonečnýZostatok,0), 0) -> 0.00 EUR
B200: =IFERROR(IF(ÚverNieJeSplatený*ÚverJeDobrý,ČísloPlatby,""), "") ->  | C200: =IFERROR(IF(ÚverNieJeSplatený*ÚverJeDobrý,DátumPlatby,PočiatočnýDátumÚveru), PočiatočnýDátumÚveru) -> 2019-07-17 | D200: =IFERROR(IF(ÚverNieJeSplatený*ÚverJeDobrý,HodnotaÚveru,""), "") ->  | E200: =IFERROR(IF(ÚverNieJeSplatený*ÚverJeDobrý,MesačnáSplátka,0), 0) -> 0.00 EUR | F200: =IFERROR(IF(ÚverNieJeSplatený*ÚverJeDobrý,Istina,0), 0) -> 0.00 EUR | G200: =IFERROR(IF(ÚverNieJeSplatený*ÚverJeDobrý,SumaÚrokov,0), 0) -> 0.00 EUR | H200: =IFERROR(IF(ÚverNieJeSplatený*ÚverJeDobrý,KonečnýZostatok,0), 0) -> 0.00 EUR
B201: =IFERROR(IF(ÚverNieJeSplatený*ÚverJeDobrý,ČísloPlatby,""), "") ->  | C201: =IFERROR(IF(ÚverNieJeSplatený*ÚverJeDobrý,DátumPlatby,PočiatočnýDátumÚveru), PočiatočnýDátumÚveru) -> 2019-07-17 | D201: =IFERROR(IF(ÚverNieJeSplatený*ÚverJeDobrý,HodnotaÚveru,""), "") ->  | E201: =IFERROR(IF(ÚverNieJeSplatený*ÚverJeDobrý,MesačnáSplátka,0), 0) -> 0.00 EUR | F201: =IFERROR(IF(ÚverNieJeSplatený*ÚverJeDobrý,Istina,0), 0) -> 0.00 EUR | G201: =IFERROR(IF(ÚverNieJeSplatený*ÚverJeDobrý,SumaÚrokov,0), 0) -> 0.00 EUR | H201: =IFERROR(IF(ÚverNieJeSplatený*ÚverJeDobrý,KonečnýZostatok,0), 0) -> 0.00 EUR
... 175 more rows
